{"text_format":"1","workbook":"xlsx","n_sheets":3,"sheets":["Formulario","Datos personales","Datos de crédito"],"not_rendered":{"charts":0,"images":1,"macros":1,"external_links":0,"defined_names":0,"comments":0,"pivot_tables":0},"unopened":[],"bounds":{"document_bytes":16777216,"sheet_cells":100000,"rows_first":2000,"rows_last":500,"rows_between":2000,"halvings":0,"cell_chars":16384,"cell_head_chars":4096},"cells_cut":0,"cells_raw":0,"read":"whole","date_system":"1900"}

{"sheet":"Formulario","index":0,"n_rows":5,"n_cols":2,"rows_kept":5,"cut":false,"hidden":false,"merged":[]}
["Estado civil","Tipo de crédito"]
["Soltero","Prendario"]
["Casado","Comercial"]
["Divorciado","Consumo"]
["Viudo","Taxi metropolitano"]

{"sheet":"Datos personales","index":1,"n_rows":1001,"n_cols":7,"rows_kept":1001,"cut":false,"hidden":false,"merged":[]}
["N°","Nombre","DNI","Estado civil","Nacimiento","Edad","Labora"]
[1,"Juan Pérez﻿ Pérez ",8545898,"Soltero","29/02/1980",{"$f":"+INT((TODAY()-E2)/365)","v":33},"Sí"]
[null,null,null,null,null,{"$f":"+INT((TODAY()-E3)/365)","v":114}]
[null,null,null,null,null,114]
[null,null,null,null,null,114]
[null,null,null,null,null,114]
[null,null,null,null,null,114]
[null,null,null,null,null,114]
[null,null,null,null,null,114]
[null,null,null,null,null,114]
[null,null,null,null,null,114]
[null,null,null,null,null,114]
[null,null,null,null,null,114]
[null,null,null,null,null,114]
[null,null,null,null,null,114]
[null,null,null,null,null,114]
[null,null,null,null,null,114]
[null,null,null,null,null,114]
[null,null,null,null,null,114]
[null,null,null,null,null,114]
[null,null,null,null,null,114]
[null,null,null,null,null,114]
[null,null,null,null,null,114]
[null,null,null,null,null,114]
[null,null,null,null,null,114]
[null,null,null,null,null,114]
[null,null,null,null,null,114]
[null,null,null,null,null,114]
[null,null,null,null,null,114]
[null,null,null,null,null,114]
[null,null,null,null,null,114]
[null,null,null,null,null,114]
[null,null,null,null,null,114]
[null,null,null,null,null,114]
[null,null,null,null,null,114]
[null,null,null,null,null,114]
[null,null,null,null,null,114]
[null,null,null,null,null,114]
[null,null,null,null,null,114]
[null,null,null,null,null,114]
[null,null,null,null,null,114]
[null,null,null,null,null,114]
[null,null,null,null,null,114]
[null,null,null,null,null,114]
[null,null,null,null,null,114]
[null,null,null,null,null,114]
[null,null,null,null,null,114]
[null,null,null,null,null,114]
[null,null,null,null,null,114]
[null,null,null,null,null,114]
[null,null,null,null,null,114]
[null,null,null,null,null,114]
[null,null,null,null,null,114]
[null,null,null,null,null,114]
[null,null,null,null,null,114]
[null,null,null,null,null,114]
[null,null,null,null,null,114]
[null,null,null,null,null,114]
[null,null,null,null,null,114]
[null,null,null,null,null,114]
[null,null,null,null,null,114]
[null,null,null,null,null,114]
[null,null,null,null,null,114]
[null,null,null,null,null,114]
[null,null,null,null,null,114]
[null,null,null,null,null,114]
[null,null,null,null,null,{"$f":"+INT((TODAY()-E67)/365)","v":114}]
[null,null,null,null,null,114]
[null,null,null,null,null,114]
[null,null,null,null,null,114]
[null,null,null,null,null,114]
[null,null,null,null,null,114]
[null,null,null,null,null,114]
[null,null,null,null,null,114]
[null,null,null,null,null,114]
[null,null,null,null,null,114]
[null,null,null,null,null,114]
[null,null,null,null,null,114]
[null,null,null,null,null,114]
[null,null,null,null,null,114]
[null,null,null,null,null,114]
[null,null,null,null,null,114]
[null,null,null,null,null,114]
[null,null,null,null,null,114]
[null,null,null,null,null,114]
[null,null,null,null,null,114]
[null,null,null,null,null,114]
[null,null,null,null,null,114]
[null,null,null,null,null,114]
[null,null,null,null,null,114]
[null,null,null,null,null,114]
[null,null,null,null,null,114]
[null,null,null,null,null,114]
[null,null,null,null,null,114]
[null,null,null,null,null,114]
[null,null,null,null,null,114]
[null,null,null,null,null,114]
[null,null,null,null,null,114]
[null,null,null,null,null,114]
[null,null,null,null,null,114]
[null,null,null,null,null,114]
[null,null,null,null,null,114]
[null,null,null,null,null,114]
[null,null,null,null,null,114]
[null,null,null,null,null,114]
[null,null,null,null,null,114]
[null,null,null,null,null,114]
[null,null,null,null,null,114]
[null,null,null,null,null,114]
[null,null,null,null,null,114]
[null,null,null,null,null,114]
[null,null,null,null,null,114]
[null,null,null,null,null,114]
[null,null,null,null,null,114]
[null,null,null,null,null,114]
[null,null,null,null,null,114]
[null,null,null,null,null,114]
[null,null,null,null,null,114]
[null,null,null,null,null,114]
[null,null,null,null,null,114]
[null,null,null,null,null,114]
[null,null,null,null,null,114]
[null,null,null,null,null,114]
[null,null,null,null,null,114]
[null,null,null,null,null,114]
[null,null,null,null,null,114]
[null,null,null,null,null,114]
[null,null,null,null,null,114]
[null,null,null,null,null,114]
[null,null,null,null,null,114]
[null,null,null,null,null,{"$f":"+INT((TODAY()-E131)/365)","v":114}]
[null,null,null,null,null,114]
[null,null,null,null,null,114]
[null,null,null,null,null,114]
[null,null,null,null,null,114]
[null,null,null,null,null,114]
[null,null,null,null,null,114]
[null,null,null,null,null,114]
[null,null,null,null,null,114]
[null,null,null,null,null,114]
[null,null,null,null,null,114]
[null,null,null,null,null,114]
[null,null,null,null,null,114]
[null,null,null,null,null,114]
[null,null,null,null,null,114]
[null,null,null,null,null,114]
[null,null,null,null,null,114]
[null,null,null,null,null,114]
[null,null,null,null,null,114]
[null,null,null,null,null,114]
[null,null,null,null,null,114]
[null,null,null,null,null,114]
[null,null,null,null,null,114]
[null,null,null,null,null,114]
[null,null,null,null,null,114]
[null,null,null,null,null,114]
[null,null,null,null,null,114]
[null,null,null,null,null,114]
[null,null,null,null,null,114]
[null,null,null,null,null,114]
[null,null,null,null,null,114]
[null,null,null,null,null,114]
[null,null,null,null,null,114]
[null,null,null,null,null,114]
[null,null,null,null,null,114]
[null,null,null,null,null,114]
[null,null,null,null,null,114]
[null,null,null,null,null,114]
[null,null,null,null,null,114]
[null,null,null,null,null,114]
[null,null,null,null,null,114]
[null,null,null,null,null,114]
[null,null,null,null,null,114]
[null,null,null,null,null,114]
[null,null,null,null,null,114]
[null,null,null,null,null,114]
[null,null,null,null,null,114]
[null,null,null,null,null,114]
[null,null,null,null,null,114]
[null,null,null,null,null,114]
[null,null,null,null,null,114]
[null,null,null,null,null,114]
[null,null,null,null,null,114]
[null,null,null,null,null,114]
[null,null,null,null,null,114]
[null,null,null,null,null,114]
[null,null,null,null,null,114]
[null,null,null,null,null,114]
[null,null,null,null,null,114]
[null,null,null,null,null,114]
[null,null,null,null,null,114]
[null,null,null,null,null,114]
[null,null,null,null,null,114]
[null,null,null,null,null,114]
[null,null,null,null,null,{"$f":"+INT((TODAY()-E195)/365)","v":114}]
[null,null,null,null,null,114]
[null,null,null,null,null,114]
[null,null,null,null,null,114]
[null,null,null,null,null,114]
[null,null,null,null,null,114]
[null,null,null,null,null,114]
[null,null,null,null,null,114]
[null,null,null,null,null,114]
[null,null,null,null,null,114]
[null,null,null,null,null,114]
[null,null,null,null,null,114]
[null,null,null,null,null,114]
[null,null,null,null,null,114]
[null,null,null,null,null,114]
[null,null,null,null,null,114]
[null,null,null,null,null,114]
[null,null,null,null,null,114]
[null,null,null,null,null,114]
[null,null,null,null,null,114]
[null,null,null,null,null,114]
[null,null,null,null,null,114]
[null,null,null,null,null,114]
[null,null,null,null,null,114]
[null,null,null,null,null,114]
[null,null,null,null,null,114]
[null,null,null,null,null,114]
[null,null,null,null,null,114]
[null,null,null,null,null,114]
[null,null,null,null,null,114]
[null,null,null,null,null,114]
[null,null,null,null,null,114]
[null,null,null,null,null,114]
[null,null,null,null,null,114]
[null,null,null,null,null,114]
[null,null,null,null,null,114]
[null,null,null,null,null,114]
[null,null,null,null,null,114]
[null,null,null,null,null,114]
[null,null,null,null,null,114]
[null,null,null,null,null,114]
[null,null,null,null,null,114]
[null,null,null,null,null,114]
[null,null,null,null,null,114]
[null,null,null,null,null,114]
[null,null,null,null,null,114]
[null,null,null,null,null,114]
[null,null,null,null,null,114]
[null,null,null,null,null,114]
[null,null,null,null,null,114]
[null,null,null,null,null,114]
[null,null,null,null,null,114]
[null,null,null,null,null,114]
[null,null,null,null,null,114]
[null,null,null,null,null,114]
[null,null,null,null,null,114]
[null,null,null,null,null,114]
[null,null,null,null,null,114]
[null,null,null,null,null,114]
[null,null,null,null,null,114]
[null,null,null,null,null,114]
[null,null,null,null,null,114]
[null,null,null,null,null,114]
[null,null,null,null,null,114]
[null,null,null,null,null,{"$f":"+INT((TODAY()-E259)/365)","v":114}]
[null,null,null,null,null,114]
[null,null,null,null,null,114]
[null,null,null,null,null,114]
[null,null,null,null,null,114]
[null,null,null,null,null,114]
[null,null,null,null,null,114]
[null,null,null,null,null,114]
[null,null,null,null,null,114]
[null,null,null,null,null,114]
[null,null,null,null,null,114]
[null,null,null,null,null,114]
[null,null,null,null,null,114]
[null,null,null,null,null,114]
[null,null,null,null,null,114]
[null,null,null,null,null,114]
[null,null,null,null,null,114]
[null,null,null,null,null,114]
[null,null,null,null,null,114]
[null,null,null,null,null,114]
[null,null,null,null,null,114]
[null,null,null,null,null,114]
[null,null,null,null,null,114]
[null,null,null,null,null,114]
[null,null,null,null,null,114]
[null,null,null,null,null,114]
[null,null,null,null,null,114]
[null,null,null,null,null,114]
[null,null,null,null,null,114]
[null,null,null,null,null,114]
[null,null,null,null,null,114]
[null,null,null,null,null,114]
[null,null,null,null,null,114]
[null,null,null,null,null,114]
[null,null,null,null,null,114]
[null,null,null,null,null,114]
[null,null,null,null,null,114]
[null,null,null,null,null,114]
[null,null,null,null,null,114]
[null,null,null,null,null,114]
[null,null,null,null,null,114]
[null,null,null,null,null,114]
[null,null,null,null,null,114]
[null,null,null,null,null,114]
[null,null,null,null,null,114]
[null,null,null,null,null,114]
[null,null,null,null,null,114]
[null,null,null,null,null,114]
[null,null,null,null,null,114]
[null,null,null,null,null,114]
[null,null,null,null,null,114]
[null,null,null,null,null,114]
[null,null,null,null,null,114]
[null,null,null,null,null,114]
[null,null,null,null,null,114]
[null,null,null,null,null,114]
[null,null,null,null,null,114]
[null,null,null,null,null,114]
[null,null,null,null,null,114]
[null,null,null,null,null,114]
[null,null,null,null,null,114]
[null,null,null,null,null,114]
[null,null,null,null,null,114]
[null,null,null,null,null,114]
[null,null,null,null,null,{"$f":"+INT((TODAY()-E323)/365)","v":114}]
[null,null,null,null,null,114]
[null,null,null,null,null,114]
[null,null,null,null,null,114]
[null,null,null,null,null,114]
[null,null,null,null,null,114]
[null,null,null,null,null,114]
[null,null,null,null,null,114]
[null,null,null,null,null,114]
[null,null,null,null,null,114]
[null,null,null,null,null,114]
[null,null,null,null,null,114]
[null,null,null,null,null,114]
[null,null,null,null,null,114]
[null,null,null,null,null,114]
[null,null,null,null,null,114]
[null,null,null,null,null,114]
[null,null,null,null,null,114]
[null,null,null,null,null,114]
[null,null,null,null,null,114]
[null,null,null,null,null,114]
[null,null,null,null,null,114]
[null,null,null,null,null,114]
[null,null,null,null,null,114]
[null,null,null,null,null,114]
[null,null,null,null,null,114]
[null,null,null,null,null,114]
[null,null,null,null,null,114]
[null,null,null,null,null,114]
[null,null,null,null,null,114]
[null,null,null,null,null,114]
[null,null,null,null,null,114]
[null,null,null,null,null,114]
[null,null,null,null,null,114]
[null,null,null,null,null,114]
[null,null,null,null,null,114]
[null,null,null,null,null,114]
[null,null,null,null,null,114]
[null,null,null,null,null,114]
[null,null,null,null,null,114]
[null,null,null,null,null,114]
[null,null,null,null,null,114]
[null,null,null,null,null,114]
[null,null,null,null,null,114]
[null,null,null,null,null,114]
[null,null,null,null,null,114]
[null,null,null,null,null,114]
[null,null,null,null,null,114]
[null,null,null,null,null,114]
[null,null,null,null,null,114]
[null,null,null,null,null,114]
[null,null,null,null,null,114]
[null,null,null,null,null,114]
[null,null,null,null,null,114]
[null,null,null,null,null,114]
[null,null,null,null,null,114]
[null,null,null,null,null,114]
[null,null,null,null,null,114]
[null,null,null,null,null,114]
[null,null,null,null,null,114]
[null,null,null,null,null,114]
[null,null,null,null,null,114]
[null,null,null,null,null,114]
[null,null,null,null,null,114]
[null,null,null,null,null,{"$f":"+INT((TODAY()-E387)/365)","v":114}]
[null,null,null,null,null,114]
[null,null,null,null,null,114]
[null,null,null,null,null,114]
[null,null,null,null,null,114]
[null,null,null,null,null,114]
[null,null,null,null,null,114]
[null,null,null,null,null,114]
[null,null,null,null,null,114]
[null,null,null,null,null,114]
[null,null,null,null,null,114]
[null,null,null,null,null,114]
[null,null,null,null,null,114]
[null,null,null,null,null,114]
[null,null,null,null,null,114]
[null,null,null,null,null,114]
[null,null,null,null,null,114]
[null,null,null,null,null,114]
[null,null,null,null,null,114]
[null,null,null,null,null,114]
[null,null,null,null,null,114]
[null,null,null,null,null,114]
[null,null,null,null,null,114]
[null,null,null,null,null,114]
[null,null,null,null,null,114]
[null,null,null,null,null,114]
[null,null,null,null,null,114]
[null,null,null,null,null,114]
[null,null,null,null,null,114]
[null,null,null,null,null,114]
[null,null,null,null,null,114]
[null,null,null,null,null,114]
[null,null,null,null,null,114]
[null,null,null,null,null,114]
[null,null,null,null,null,114]
[null,null,null,null,null,114]
[null,null,null,null,null,114]
[null,null,null,null,null,114]
[null,null,null,null,null,114]
[null,null,null,null,null,114]
[null,null,null,null,null,114]
[null,null,null,null,null,114]
[null,null,null,null,null,114]
[null,null,null,null,null,114]
[null,null,null,null,null,114]
[null,null,null,null,null,114]
[null,null,null,null,null,114]
[null,null,null,null,null,114]
[null,null,null,null,null,114]
[null,null,null,null,null,114]
[null,null,null,null,null,114]
[null,null,null,null,null,114]
[null,null,null,null,null,114]
[null,null,null,null,null,114]
[null,null,null,null,null,114]
[null,null,null,null,null,114]
[null,null,null,null,null,114]
[null,null,null,null,null,114]
[null,null,null,null,null,114]
[null,null,null,null,null,114]
[null,null,null,null,null,114]
[null,null,null,null,null,114]
[null,null,null,null,null,114]
[null,null,null,null,null,114]
[null,null,null,null,null,{"$f":"+INT((TODAY()-E451)/365)","v":114}]
[null,null,null,null,null,114]
[null,null,null,null,null,114]
[null,null,null,null,null,114]
[null,null,null,null,null,114]
[null,null,null,null,null,114]
[null,null,null,null,null,114]
[null,null,null,null,null,114]
[null,null,null,null,null,114]
[null,null,null,null,null,114]
[null,null,null,null,null,114]
[null,null,null,null,null,114]
[null,null,null,null,null,114]
[null,null,null,null,null,114]
[null,null,null,null,null,114]
[null,null,null,null,null,114]
[null,null,null,null,null,114]
[null,null,null,null,null,114]
[null,null,null,null,null,114]
[null,null,null,null,null,114]
[null,null,null,null,null,114]
[null,null,null,null,null,114]
[null,null,null,null,null,114]
[null,null,null,null,null,114]
[null,null,null,null,null,114]
[null,null,null,null,null,114]
[null,null,null,null,null,114]
[null,null,null,null,null,114]
[null,null,null,null,null,114]
[null,null,null,null,null,114]
[null,null,null,null,null,114]
[null,null,null,null,null,114]
[null,null,null,null,null,114]
[null,null,null,null,null,114]
[null,null,null,null,null,114]
[null,null,null,null,null,114]
[null,null,null,null,null,114]
[null,null,null,null,null,114]
[null,null,null,null,null,114]
[null,null,null,null,null,114]
[null,null,null,null,null,114]
[null,null,null,null,null,114]
[null,null,null,null,null,114]
[null,null,null,null,null,114]
[null,null,null,null,null,114]
[null,null,null,null,null,114]
[null,null,null,null,null,114]
[null,null,null,null,null,114]
[null,null,null,null,null,114]
[null,null,null,null,null,114]
[null,null,null,null,null,114]
[null,null,null,null,null,114]
[null,null,null,null,null,114]
[null,null,null,null,null,114]
[null,null,null,null,null,114]
[null,null,null,null,null,114]
[null,null,null,null,null,114]
[null,null,null,null,null,114]
[null,null,null,null,null,114]
[null,null,null,null,null,114]
[null,null,null,null,null,114]
[null,null,null,null,null,114]
[null,null,null,null,null,114]
[null,null,null,null,null,114]
[null,null,null,null,null,{"$f":"+INT((TODAY()-E515)/365)","v":114}]
[null,null,null,null,null,114]
[null,null,null,null,null,114]
[null,null,null,null,null,114]
[null,null,null,null,null,114]
[null,null,null,null,null,114]
[null,null,null,null,null,114]
[null,null,null,null,null,114]
[null,null,null,null,null,114]
[null,null,null,null,null,114]
[null,null,null,null,null,114]
[null,null,null,null,null,114]
[null,null,null,null,null,114]
[null,null,null,null,null,114]
[null,null,null,null,null,114]
[null,null,null,null,null,114]
[null,null,null,null,null,114]
[null,null,null,null,null,114]
[null,null,null,null,null,114]
[null,null,null,null,null,114]
[null,null,null,null,null,114]
[null,null,null,null,null,114]
[null,null,null,null,null,114]
[null,null,null,null,null,114]
[null,null,null,null,null,114]
[null,null,null,null,null,114]
[null,null,null,null,null,114]
[null,null,null,null,null,114]
[null,null,null,null,null,114]
[null,null,null,null,null,114]
[null,null,null,null,null,114]
[null,null,null,null,null,114]
[null,null,null,null,null,114]
[null,null,null,null,null,114]
[null,null,null,null,null,114]
[null,null,null,null,null,114]
[null,null,null,null,null,114]
[null,null,null,null,null,114]
[null,null,null,null,null,114]
[null,null,null,null,null,114]
[null,null,null,null,null,114]
[null,null,null,null,null,114]
[null,null,null,null,null,114]
[null,null,null,null,null,114]
[null,null,null,null,null,114]
[null,null,null,null,null,114]
[null,null,null,null,null,114]
[null,null,null,null,null,114]
[null,null,null,null,null,114]
[null,null,null,null,null,114]
[null,null,null,null,null,114]
[null,null,null,null,null,114]
[null,null,null,null,null,114]
[null,null,null,null,null,114]
[null,null,null,null,null,114]
[null,null,null,null,null,114]
[null,null,null,null,null,114]
[null,null,null,null,null,114]
[null,null,null,null,null,114]
[null,null,null,null,null,114]
[null,null,null,null,null,114]
[null,null,null,null,null,114]
[null,null,null,null,null,114]
[null,null,null,null,null,114]
[null,null,null,null,null,{"$f":"+INT((TODAY()-E579)/365)","v":114}]
[null,null,null,null,null,114]
[null,null,null,null,null,114]
[null,null,null,null,null,114]
[null,null,null,null,null,114]
[null,null,null,null,null,114]
[null,null,null,null,null,114]
[null,null,null,null,null,114]
[null,null,null,null,null,114]
[null,null,null,null,null,114]
[null,null,null,null,null,114]
[null,null,null,null,null,114]
[null,null,null,null,null,114]
[null,null,null,null,null,114]
[null,null,null,null,null,114]
[null,null,null,null,null,114]
[null,null,null,null,null,114]
[null,null,null,null,null,114]
[null,null,null,null,null,114]
[null,null,null,null,null,114]
[null,null,null,null,null,114]
[null,null,null,null,null,114]
[null,null,null,null,null,114]
[null,null,null,null,null,114]
[null,null,null,null,null,114]
[null,null,null,null,null,114]
[null,null,null,null,null,114]
[null,null,null,null,null,114]
[null,null,null,null,null,114]
[null,null,null,null,null,114]
[null,null,null,null,null,114]
[null,null,null,null,null,114]
[null,null,null,null,null,114]
[null,null,null,null,null,114]
[null,null,null,null,null,114]
[null,null,null,null,null,114]
[null,null,null,null,null,114]
[null,null,null,null,null,114]
[null,null,null,null,null,114]
[null,null,null,null,null,114]
[null,null,null,null,null,114]
[null,null,null,null,null,114]
[null,null,null,null,null,114]
[null,null,null,null,null,114]
[null,null,null,null,null,114]
[null,null,null,null,null,114]
[null,null,null,null,null,114]
[null,null,null,null,null,114]
[null,null,null,null,null,114]
[null,null,null,null,null,114]
[null,null,null,null,null,114]
[null,null,null,null,null,114]
[null,null,null,null,null,114]
[null,null,null,null,null,114]
[null,null,null,null,null,114]
[null,null,null,null,null,114]
[null,null,null,null,null,114]
[null,null,null,null,null,114]
[null,null,null,null,null,114]
[null,null,null,null,null,114]
[null,null,null,null,null,114]
[null,null,null,null,null,114]
[null,null,null,null,null,114]
[null,null,null,null,null,114]
[null,null,null,null,null,{"$f":"+INT((TODAY()-E643)/365)","v":114}]
[null,null,null,null,null,114]
[null,null,null,null,null,114]
[null,null,null,null,null,114]
[null,null,null,null,null,114]
[null,null,null,null,null,114]
[null,null,null,null,null,114]
[null,null,null,null,null,114]
[null,null,null,null,null,114]
[null,null,null,null,null,114]
[null,null,null,null,null,114]
[null,null,null,null,null,114]
[null,null,null,null,null,114]
[null,null,null,null,null,114]
[null,null,null,null,null,114]
[null,null,null,null,null,114]
[null,null,null,null,null,114]
[null,null,null,null,null,114]
[null,null,null,null,null,114]
[null,null,null,null,null,114]
[null,null,null,null,null,114]
[null,null,null,null,null,114]
[null,null,null,null,null,114]
[null,null,null,null,null,114]
[null,null,null,null,null,114]
[null,null,null,null,null,114]
[null,null,null,null,null,114]
[null,null,null,null,null,114]
[null,null,null,null,null,114]
[null,null,null,null,null,114]
[null,null,null,null,null,114]
[null,null,null,null,null,114]
[null,null,null,null,null,114]
[null,null,null,null,null,114]
[null,null,null,null,null,114]
[null,null,null,null,null,114]
[null,null,null,null,null,114]
[null,null,null,null,null,114]
[null,null,null,null,null,114]
[null,null,null,null,null,114]
[null,null,null,null,null,114]
[null,null,null,null,null,114]
[null,null,null,null,null,114]
[null,null,null,null,null,114]
[null,null,null,null,null,114]
[null,null,null,null,null,114]
[null,null,null,null,null,114]
[null,null,null,null,null,114]
[null,null,null,null,null,114]
[null,null,null,null,null,114]
[null,null,null,null,null,114]
[null,null,null,null,null,114]
[null,null,null,null,null,114]
[null,null,null,null,null,114]
[null,null,null,null,null,114]
[null,null,null,null,null,114]
[null,null,null,null,null,114]
[null,null,null,null,null,114]
[null,null,null,null,null,114]
[null,null,null,null,null,114]
[null,null,null,null,null,114]
[null,null,null,null,null,114]
[null,null,null,null,null,114]
[null,null,null,null,null,114]
[null,null,null,null,null,{"$f":"+INT((TODAY()-E707)/365)","v":114}]
[null,null,null,null,null,114]
[null,null,null,null,null,114]
[null,null,null,null,null,114]
[null,null,null,null,null,114]
[null,null,null,null,null,114]
[null,null,null,null,null,114]
[null,null,null,null,null,114]
[null,null,null,null,null,114]
[null,null,null,null,null,114]
[null,null,null,null,null,114]
[null,null,null,null,null,114]
[null,null,null,null,null,114]
[null,null,null,null,null,114]
[null,null,null,null,null,114]
[null,null,null,null,null,114]
[null,null,null,null,null,114]
[null,null,null,null,null,114]
[null,null,null,null,null,114]
[null,null,null,null,null,114]
[null,null,null,null,null,114]
[null,null,null,null,null,114]
[null,null,null,null,null,114]
[null,null,null,null,null,114]
[null,null,null,null,null,114]
[null,null,null,null,null,114]
[null,null,null,null,null,114]
[null,null,null,null,null,114]
[null,null,null,null,null,114]
[null,null,null,null,null,114]
[null,null,null,null,null,114]
[null,null,null,null,null,114]
[null,null,null,null,null,114]
[null,null,null,null,null,114]
[null,null,null,null,null,114]
[null,null,null,null,null,114]
[null,null,null,null,null,114]
[null,null,null,null,null,114]
[null,null,null,null,null,114]
[null,null,null,null,null,114]
[null,null,null,null,null,114]
[null,null,null,null,null,114]
[null,null,null,null,null,114]
[null,null,null,null,null,114]
[null,null,null,null,null,114]
[null,null,null,null,null,114]
[null,null,null,null,null,114]
[null,null,null,null,null,114]
[null,null,null,null,null,114]
[null,null,null,null,null,114]
[null,null,null,null,null,114]
[null,null,null,null,null,114]
[null,null,null,null,null,114]
[null,null,null,null,null,114]
[null,null,null,null,null,114]
[null,null,null,null,null,114]
[null,null,null,null,null,114]
[null,null,null,null,null,114]
[null,null,null,null,null,114]
[null,null,null,null,null,114]
[null,null,null,null,null,114]
[null,null,null,null,null,114]
[null,null,null,null,null,114]
[null,null,null,null,null,114]
[null,null,null,null,null,{"$f":"+INT((TODAY()-E771)/365)","v":114}]
[null,null,null,null,null,114]
[null,null,null,null,null,114]
[null,null,null,null,null,114]
[null,null,null,null,null,114]
[null,null,null,null,null,114]
[null,null,null,null,null,114]
[null,null,null,null,null,114]
[null,null,null,null,null,114]
[null,null,null,null,null,114]
[null,null,null,null,null,114]
[null,null,null,null,null,114]
[null,null,null,null,null,114]
[null,null,null,null,null,114]
[null,null,null,null,null,114]
[null,null,null,null,null,114]
[null,null,null,null,null,114]
[null,null,null,null,null,114]
[null,null,null,null,null,114]
[null,null,null,null,null,114]
[null,null,null,null,null,114]
[null,null,null,null,null,114]
[null,null,null,null,null,114]
[null,null,null,null,null,114]
[null,null,null,null,null,114]
[null,null,null,null,null,114]
[null,null,null,null,null,114]
[null,null,null,null,null,114]
[null,null,null,null,null,114]
[null,null,null,null,null,114]
[null,null,null,null,null,114]
[null,null,null,null,null,114]
[null,null,null,null,null,114]
[null,null,null,null,null,114]
[null,null,null,null,null,114]
[null,null,null,null,null,114]
[null,null,null,null,null,114]
[null,null,null,null,null,114]
[null,null,null,null,null,114]
[null,null,null,null,null,114]
[null,null,null,null,null,114]
[null,null,null,null,null,114]
[null,null,null,null,null,114]
[null,null,null,null,null,114]
[null,null,null,null,null,114]
[null,null,null,null,null,114]
[null,null,null,null,null,114]
[null,null,null,null,null,114]
[null,null,null,null,null,114]
[null,null,null,null,null,114]
[null,null,null,null,null,114]
[null,null,null,null,null,114]
[null,null,null,null,null,114]
[null,null,null,null,null,114]
[null,null,null,null,null,114]
[null,null,null,null,null,114]
[null,null,null,null,null,114]
[null,null,null,null,null,114]
[null,null,null,null,null,114]
[null,null,null,null,null,114]
[null,null,null,null,null,114]
[null,null,null,null,null,114]
[null,null,null,null,null,114]
[null,null,null,null,null,114]
[null,null,null,null,null,{"$f":"+INT((TODAY()-E835)/365)","v":114}]
[null,null,null,null,null,114]
[null,null,null,null,null,114]
[null,null,null,null,null,114]
[null,null,null,null,null,114]
[null,null,null,null,null,114]
[null,null,null,null,null,114]
[null,null,null,null,null,114]
[null,null,null,null,null,114]
[null,null,null,null,null,114]
[null,null,null,null,null,114]
[null,null,null,null,null,114]
[null,null,null,null,null,114]
[null,null,null,null,null,114]
[null,null,null,null,null,114]
[null,null,null,null,null,114]
[null,null,null,null,null,114]
[null,null,null,null,null,114]
[null,null,null,null,null,114]
[null,null,null,null,null,114]
[null,null,null,null,null,114]
[null,null,null,null,null,114]
[null,null,null,null,null,114]
[null,null,null,null,null,114]
[null,null,null,null,null,114]
[null,null,null,null,null,114]
[null,null,null,null,null,114]
[null,null,null,null,null,114]
[null,null,null,null,null,114]
[null,null,null,null,null,114]
[null,null,null,null,null,114]
[null,null,null,null,null,114]
[null,null,null,null,null,114]
[null,null,null,null,null,114]
[null,null,null,null,null,114]
[null,null,null,null,null,114]
[null,null,null,null,null,114]
[null,null,null,null,null,114]
[null,null,null,null,null,114]
[null,null,null,null,null,114]
[null,null,null,null,null,114]
[null,null,null,null,null,114]
[null,null,null,null,null,114]
[null,null,null,null,null,114]
[null,null,null,null,null,114]
[null,null,null,null,null,114]
[null,null,null,null,null,114]
[null,null,null,null,null,114]
[null,null,null,null,null,114]
[null,null,null,null,null,114]
[null,null,null,null,null,114]
[null,null,null,null,null,114]
[null,null,null,null,null,114]
[null,null,null,null,null,114]
[null,null,null,null,null,114]
[null,null,null,null,null,114]
[null,null,null,null,null,114]
[null,null,null,null,null,114]
[null,null,null,null,null,114]
[null,null,null,null,null,114]
[null,null,null,null,null,114]
[null,null,null,null,null,114]
[null,null,null,null,null,114]
[null,null,null,null,null,114]
[null,null,null,null,null,{"$f":"+INT((TODAY()-E899)/365)","v":114}]
[null,null,null,null,null,114]
[null,null,null,null,null,114]
[null,null,null,null,null,114]
[null,null,null,null,null,114]
[null,null,null,null,null,114]
[null,null,null,null,null,114]
[null,null,null,null,null,114]
[null,null,null,null,null,114]
[null,null,null,null,null,114]
[null,null,null,null,null,114]
[null,null,null,null,null,114]
[null,null,null,null,null,114]
[null,null,null,null,null,114]
[null,null,null,null,null,114]
[null,null,null,null,null,114]
[null,null,null,null,null,114]
[null,null,null,null,null,114]
[null,null,null,null,null,114]
[null,null,null,null,null,114]
[null,null,null,null,null,114]
[null,null,null,null,null,114]
[null,null,null,null,null,114]
[null,null,null,null,null,114]
[null,null,null,null,null,114]
[null,null,null,null,null,114]
[null,null,null,null,null,114]
[null,null,null,null,null,114]
[null,null,null,null,null,114]
[null,null,null,null,null,114]
[null,null,null,null,null,114]
[null,null,null,null,null,114]
[null,null,null,null,null,114]
[null,null,null,null,null,114]
[null,null,null,null,null,114]
[null,null,null,null,null,114]
[null,null,null,null,null,114]
[null,null,null,null,null,114]
[null,null,null,null,null,114]
[null,null,null,null,null,114]
[null,null,null,null,null,114]
[null,null,null,null,null,114]
[null,null,null,null,null,114]
[null,null,null,null,null,114]
[null,null,null,null,null,114]
[null,null,null,null,null,114]
[null,null,null,null,null,114]
[null,null,null,null,null,114]
[null,null,null,null,null,114]
[null,null,null,null,null,114]
[null,null,null,null,null,114]
[null,null,null,null,null,114]
[null,null,null,null,null,114]
[null,null,null,null,null,114]
[null,null,null,null,null,114]
[null,null,null,null,null,114]
[null,null,null,null,null,114]
[null,null,null,null,null,114]
[null,null,null,null,null,114]
[null,null,null,null,null,114]
[null,null,null,null,null,114]
[null,null,null,null,null,114]
[null,null,null,null,null,114]
[null,null,null,null,null,114]
[null,null,null,null,null,{"$f":"+INT((TODAY()-E963)/365)","v":114}]
[null,null,null,null,null,114]
[null,null,null,null,null,114]
[null,null,null,null,null,114]
[null,null,null,null,null,114]
[null,null,null,null,null,114]
[null,null,null,null,null,114]
[null,null,null,null,null,114]
[null,null,null,null,null,114]
[null,null,null,null,null,114]
[null,null,null,null,null,114]
[null,null,null,null,null,114]
[null,null,null,null,null,114]
[null,null,null,null,null,114]
[null,null,null,null,null,114]
[null,null,null,null,null,114]
[null,null,null,null,null,114]
[null,null,null,null,null,114]
[null,null,null,null,null,114]
[null,null,null,null,null,114]
[null,null,null,null,null,114]
[null,null,null,null,null,114]
[null,null,null,null,null,114]
[null,null,null,null,null,114]
[null,null,null,null,null,114]
[null,null,null,null,null,114]
[null,null,null,null,null,114]
[null,null,null,null,null,114]
[null,null,null,null,null,114]
[null,null,null,null,null,114]
[null,null,null,null,null,114]
[null,null,null,null,null,114]
[null,null,null,null,null,114]
[null,null,null,null,null,114]
[null,null,null,null,null,114]
[null,null,null,null,null,114]
[null,null,null,null,null,114]
[null,null,null,null,null,114]
[null,null,null,null,null,114]

{"sheet":"Datos de crédito","index":2,"n_rows":1001,"n_cols":10,"rows_kept":1001,"cut":false,"hidden":false,"merged":[]}
["N°","DNI","Tipo de crédito","Moneda","Monto","Periodo","Tasa","Cuota","Inicio","Vencimiento"]
[1,8545898,"Consumo","US$",5000,12,{"$f":"+IF(D2=\"S/.\",0.1,0.05)","v":0.05},{"$f":"-PMT(G2,F2,E2)","v":564.12705010407706},"16/02/2014",{"$f":"+I2+F2*30","v":"2015-02-11"}]
[null,null,null,null,null,null,{"$f":"+IF(D3=\"S/.\",0.1,0.05)","v":0.05},{"$f":"-PMT(G3,F3,E3)","v":{"$error":"#NUM!"}},null,{"$f":"+I3+F3*30","v":"00:00:00"}]
[null,null,null,null,null,null,{"$f":"+IF(D4=\"S/.\",0.1,0.05)","v":0.05},{"$error":"#NUM!"},null,"00:00:00"]
[null,null,null,null,null,null,0.05,{"$error":"#NUM!"},null,"00:00:00"]
[null,null,null,null,null,null,0.05,{"$error":"#NUM!"},null,"00:00:00"]
[null,null,null,null,null,null,0.05,{"$error":"#NUM!"},null,"00:00:00"]
[null,null,null,null,null,null,0.05,{"$error":"#NUM!"},null,"00:00:00"]
[null,null,null,null,null,null,0.05,{"$error":"#NUM!"},null,"00:00:00"]
[null,null,null,null,null,null,0.05,{"$error":"#NUM!"},null,"00:00:00"]
[null,null,null,null,null,null,0.05,{"$error":"#NUM!"},null,"00:00:00"]
[null,null,null,null,null,null,0.05,{"$error":"#NUM!"},null,"00:00:00"]
[null,null,null,null,null,null,0.05,{"$error":"#NUM!"},null,"00:00:00"]
[null,null,null,null,null,null,0.05,{"$error":"#NUM!"},null,"00:00:00"]
[null,null,null,null,null,null,0.05,{"$error":"#NUM!"},null,"00:00:00"]
[null,null,null,null,null,null,0.05,{"$error":"#NUM!"},null,"00:00:00"]
[null,null,null,null,null,null,0.05,{"$error":"#NUM!"},null,"00:00:00"]
[null,null,null,null,null,null,0.05,{"$error":"#NUM!"},null,"00:00:00"]
[null,null,null,null,null,null,0.05,{"$error":"#NUM!"},null,"00:00:00"]
[null,null,null,null,null,null,0.05,{"$error":"#NUM!"},null,"00:00:00"]
[null,null,null,null,null,null,0.05,{"$error":"#NUM!"},null,"00:00:00"]
[null,null,null,null,null,null,0.05,{"$error":"#NUM!"},null,"00:00:00"]
[null,null,null,null,null,null,0.05,{"$error":"#NUM!"},null,"00:00:00"]
[null,null,null,null,null,null,0.05,{"$error":"#NUM!"},null,"00:00:00"]
[null,null,null,null,null,null,0.05,{"$error":"#NUM!"},null,"00:00:00"]
[null,null,null,null,null,null,0.05,{"$error":"#NUM!"},null,"00:00:00"]
[null,null,null,null,null,null,0.05,{"$error":"#NUM!"},null,"00:00:00"]
[null,null,null,null,null,null,0.05,{"$error":"#NUM!"},null,"00:00:00"]
[null,null,null,null,null,null,0.05,{"$error":"#NUM!"},null,"00:00:00"]
[null,null,null,null,null,null,0.05,{"$error":"#NUM!"},null,"00:00:00"]
[null,null,null,null,null,null,{"$f":"+IF(D31=\"S/.\",0.1,0.05)","v":0.05},{"$error":"#NUM!"},null,"00:00:00"]
[null,null,null,null,null,null,0.05,{"$error":"#NUM!"},null,"00:00:00"]
[null,null,null,null,null,null,0.05,{"$error":"#NUM!"},null,"00:00:00"]
[null,null,null,null,null,null,0.05,{"$error":"#NUM!"},null,"00:00:00"]
[null,null,null,null,null,null,0.05,{"$error":"#NUM!"},null,"00:00:00"]
[null,null,null,null,null,null,0.05,{"$error":"#NUM!"},null,"00:00:00"]
[null,null,null,null,null,null,0.05,{"$error":"#NUM!"},null,"00:00:00"]
[null,null,null,null,null,null,0.05,{"$error":"#NUM!"},null,"00:00:00"]
[null,null,null,null,null,null,0.05,{"$error":"#NUM!"},null,"00:00:00"]
[null,null,null,null,null,null,0.05,{"$error":"#NUM!"},null,"00:00:00"]
[null,null,null,null,null,null,0.05,{"$error":"#NUM!"},null,"00:00:00"]
[null,null,null,null,null,null,0.05,{"$error":"#NUM!"},null,"00:00:00"]
[null,null,null,null,null,null,0.05,{"$error":"#NUM!"},null,"00:00:00"]
[null,null,null,null,null,null,0.05,{"$error":"#NUM!"},null,"00:00:00"]
[null,null,null,null,null,null,0.05,{"$error":"#NUM!"},null,"00:00:00"]
[null,null,null,null,null,null,0.05,{"$error":"#NUM!"},null,"00:00:00"]
[null,null,null,null,null,null,0.05,{"$error":"#NUM!"},null,"00:00:00"]
[null,null,null,null,null,null,0.05,{"$error":"#NUM!"},null,"00:00:00"]
[null,null,null,null,null,null,0.05,{"$error":"#NUM!"},null,"00:00:00"]
[null,null,null,null,null,null,0.05,{"$error":"#NUM!"},null,"00:00:00"]
[null,null,null,null,null,null,0.05,{"$error":"#NUM!"},null,"00:00:00"]
[null,null,null,null,null,null,0.05,{"$error":"#NUM!"},null,"00:00:00"]
[null,null,null,null,null,null,0.05,{"$error":"#NUM!"},null,"00:00:00"]
[null,null,null,null,null,null,0.05,{"$error":"#NUM!"},null,"00:00:00"]
[null,null,null,null,null,null,0.05,{"$error":"#NUM!"},null,"00:00:00"]
[null,null,null,null,null,null,0.05,{"$error":"#NUM!"},null,"00:00:00"]
[null,null,null,null,null,null,0.05,{"$error":"#NUM!"},null,"00:00:00"]
[null,null,null,null,null,null,0.05,{"$error":"#NUM!"},null,"00:00:00"]
[null,null,null,null,null,null,0.05,{"$error":"#NUM!"},null,"00:00:00"]
[null,null,null,null,null,null,0.05,{"$error":"#NUM!"},null,"00:00:00"]
[null,null,null,null,null,null,0.05,{"$error":"#NUM!"},null,"00:00:00"]
[null,null,null,null,null,null,0.05,{"$error":"#NUM!"},null,"00:00:00"]
[null,null,null,null,null,null,0.05,{"$error":"#NUM!"},null,"00:00:00"]
[null,null,null,null,null,null,0.05,{"$error":"#NUM!"},null,"00:00:00"]
[null,null,null,null,null,null,0.05,{"$error":"#NUM!"},null,"00:00:00"]
[null,null,null,null,null,null,0.05,{"$error":"#NUM!"},null,"00:00:00"]
[null,null,null,null,null,null,0.05,{"$f":"-PMT(G67,F67,E67)","v":{"$error":"#NUM!"}},null,{"$f":"+I67+F67*30","v":"00:00:00"}]
[null,null,null,null,null,null,0.05,{"$error":"#NUM!"},null,"00:00:00"]
[null,null,null,null,null,null,0.05,{"$error":"#NUM!"},null,"00:00:00"]
[null,null,null,null,null,null,0.05,{"$error":"#NUM!"},null,"00:00:00"]
[null,null,null,null,null,null,0.05,{"$error":"#NUM!"},null,"00:00:00"]
[null,null,null,null,null,null,0.05,{"$error":"#NUM!"},null,"00:00:00"]
[null,null,null,null,null,null,0.05,{"$error":"#NUM!"},null,"00:00:00"]
[null,null,null,null,null,null,0.05,{"$error":"#NUM!"},null,"00:00:00"]
[null,null,null,null,null,null,0.05,{"$error":"#NUM!"},null,"00:00:00"]
[null,null,null,null,null,null,0.05,{"$error":"#NUM!"},null,"00:00:00"]
[null,null,null,null,null,null,0.05,{"$error":"#NUM!"},null,"00:00:00"]
[null,null,null,null,null,null,0.05,{"$error":"#NUM!"},null,"00:00:00"]
[null,null,null,null,null,null,0.05,{"$error":"#NUM!"},null,"00:00:00"]
[null,null,null,null,null,null,0.05,{"$error":"#NUM!"},null,"00:00:00"]
[null,null,null,null,null,null,0.05,{"$error":"#NUM!"},null,"00:00:00"]
[null,null,null,null,null,null,0.05,{"$error":"#NUM!"},null,"00:00:00"]
[null,null,null,null,null,null,0.05,{"$error":"#NUM!"},null,"00:00:00"]
[null,null,null,null,null,null,0.05,{"$error":"#NUM!"},null,"00:00:00"]
[null,null,null,null,null,null,0.05,{"$error":"#NUM!"},null,"00:00:00"]
[null,null,null,null,null,null,0.05,{"$error":"#NUM!"},null,"00:00:00"]
[null,null,null,null,null,null,0.05,{"$error":"#NUM!"},null,"00:00:00"]
[null,null,null,null,null,null,0.05,{"$error":"#NUM!"},null,"00:00:00"]
[null,null,null,null,null,null,0.05,{"$error":"#NUM!"},null,"00:00:00"]
[null,null,null,null,null,null,0.05,{"$error":"#NUM!"},null,"00:00:00"]
[null,null,null,null,null,null,0.05,{"$error":"#NUM!"},null,"00:00:00"]
[null,null,null,null,null,null,0.05,{"$error":"#NUM!"},null,"00:00:00"]
[null,null,null,null,null,null,0.05,{"$error":"#NUM!"},null,"00:00:00"]
[null,null,null,null,null,null,0.05,{"$error":"#NUM!"},null,"00:00:00"]
[null,null,null,null,null,null,{"$f":"+IF(D95=\"S/.\",0.1,0.05)","v":0.05},{"$error":"#NUM!"},null,"00:00:00"]
[null,null,null,null,null,null,0.05,{"$error":"#NUM!"},null,"00:00:00"]
[null,null,null,null,null,null,0.05,{"$error":"#NUM!"},null,"00:00:00"]
[null,null,null,null,null,null,0.05,{"$error":"#NUM!"},null,"00:00:00"]
[null,null,null,null,null,null,0.05,{"$error":"#NUM!"},null,"00:00:00"]
[null,null,null,null,null,null,0.05,{"$error":"#NUM!"},null,"00:00:00"]
[null,null,null,null,null,null,0.05,{"$error":"#NUM!"},null,"00:00:00"]
[null,null,null,null,null,null,0.05,{"$error":"#NUM!"},null,"00:00:00"]
[null,null,null,null,null,null,0.05,{"$error":"#NUM!"},null,"00:00:00"]
[null,null,null,null,null,null,0.05,{"$error":"#NUM!"},null,"00:00:00"]
[null,null,null,null,null,null,0.05,{"$error":"#NUM!"},null,"00:00:00"]
[null,null,null,null,null,null,0.05,{"$error":"#NUM!"},null,"00:00:00"]
[null,null,null,null,null,null,0.05,{"$error":"#NUM!"},null,"00:00:00"]
[null,null,null,null,null,null,0.05,{"$error":"#NUM!"},null,"00:00:00"]
[null,null,null,null,null,null,0.05,{"$error":"#NUM!"},null,"00:00:00"]
[null,null,null,null,null,null,0.05,{"$error":"#NUM!"},null,"00:00:00"]
[null,null,null,null,null,null,0.05,{"$error":"#NUM!"},null,"00:00:00"]
[null,null,null,null,null,null,0.05,{"$error":"#NUM!"},null,"00:00:00"]
[null,null,null,null,null,null,0.05,{"$error":"#NUM!"},null,"00:00:00"]
[null,null,null,null,null,null,0.05,{"$error":"#NUM!"},null,"00:00:00"]
[null,null,null,null,null,null,0.05,{"$error":"#NUM!"},null,"00:00:00"]
[null,null,null,null,null,null,0.05,{"$error":"#NUM!"},null,"00:00:00"]
[null,null,null,null,null,null,0.05,{"$error":"#NUM!"},null,"00:00:00"]
[null,null,null,null,null,null,0.05,{"$error":"#NUM!"},null,"00:00:00"]
[null,null,null,null,null,null,0.05,{"$error":"#NUM!"},null,"00:00:00"]
[null,null,null,null,null,null,0.05,{"$error":"#NUM!"},null,"00:00:00"]
[null,null,null,null,null,null,0.05,{"$error":"#NUM!"},null,"00:00:00"]
[null,null,null,null,null,null,0.05,{"$error":"#NUM!"},null,"00:00:00"]
[null,null,null,null,null,null,0.05,{"$error":"#NUM!"},null,"00:00:00"]
[null,null,null,null,null,null,0.05,{"$error":"#NUM!"},null,"00:00:00"]
[null,null,null,null,null,null,0.05,{"$error":"#NUM!"},null,"00:00:00"]
[null,null,null,null,null,null,0.05,{"$error":"#NUM!"},null,"00:00:00"]
[null,null,null,null,null,null,0.05,{"$error":"#NUM!"},null,"00:00:00"]
[null,null,null,null,null,null,0.05,{"$error":"#NUM!"},null,"00:00:00"]
[null,null,null,null,null,null,0.05,{"$error":"#NUM!"},null,"00:00:00"]
[null,null,null,null,null,null,0.05,{"$error":"#NUM!"},null,"00:00:00"]
[null,null,null,null,null,null,0.05,{"$f":"-PMT(G131,F131,E131)","v":{"$error":"#NUM!"}},null,{"$f":"+I131+F131*30","v":"00:00:00"}]
[null,null,null,null,null,null,0.05,{"$error":"#NUM!"},null,"00:00:00"]
[null,null,null,null,null,null,0.05,{"$error":"#NUM!"},null,"00:00:00"]
[null,null,null,null,null,null,0.05,{"$error":"#NUM!"},null,"00:00:00"]
[null,null,null,null,null,null,0.05,{"$error":"#NUM!"},null,"00:00:00"]
[null,null,null,null,null,null,0.05,{"$error":"#NUM!"},null,"00:00:00"]
[null,null,null,null,null,null,0.05,{"$error":"#NUM!"},null,"00:00:00"]
[null,null,null,null,null,null,0.05,{"$error":"#NUM!"},null,"00:00:00"]
[null,null,null,null,null,null,0.05,{"$error":"#NUM!"},null,"00:00:00"]
[null,null,null,null,null,null,0.05,{"$error":"#NUM!"},null,"00:00:00"]
[null,null,null,null,null,null,0.05,{"$error":"#NUM!"},null,"00:00:00"]
[null,null,null,null,null,null,0.05,{"$error":"#NUM!"},null,"00:00:00"]
[null,null,null,null,null,null,0.05,{"$error":"#NUM!"},null,"00:00:00"]
[null,null,null,null,null,null,0.05,{"$error":"#NUM!"},null,"00:00:00"]
[null,null,null,null,null,null,0.05,{"$error":"#NUM!"},null,"00:00:00"]
[null,null,null,null,null,null,0.05,{"$error":"#NUM!"},null,"00:00:00"]
[null,null,null,null,null,null,0.05,{"$error":"#NUM!"},null,"00:00:00"]
[null,null,null,null,null,null,0.05,{"$error":"#NUM!"},null,"00:00:00"]
[null,null,null,null,null,null,0.05,{"$error":"#NUM!"},null,"00:00:00"]
[null,null,null,null,null,null,0.05,{"$error":"#NUM!"},null,"00:00:00"]
[null,null,null,null,null,null,0.05,{"$error":"#NUM!"},null,"00:00:00"]
[null,null,null,null,null,null,0.05,{"$error":"#NUM!"},null,"00:00:00"]
[null,null,null,null,null,null,0.05,{"$error":"#NUM!"},null,"00:00:00"]
[null,null,null,null,null,null,0.05,{"$error":"#NUM!"},null,"00:00:00"]
[null,null,null,null,null,null,0.05,{"$error":"#NUM!"},null,"00:00:00"]
[null,null,null,null,null,null,0.05,{"$error":"#NUM!"},null,"00:00:00"]
[null,null,null,null,null,null,0.05,{"$error":"#NUM!"},null,"00:00:00"]
[null,null,null,null,null,null,0.05,{"$error":"#NUM!"},null,"00:00:00"]
[null,null,null,null,null,null,{"$f":"+IF(D159=\"S/.\",0.1,0.05)","v":0.05},{"$error":"#NUM!"},null,"00:00:00"]
[null,null,null,null,null,null,0.05,{"$error":"#NUM!"},null,"00:00:00"]
[null,null,null,null,null,null,0.05,{"$error":"#NUM!"},null,"00:00:00"]
[null,null,null,null,null,null,0.05,{"$error":"#NUM!"},null,"00:00:00"]
[null,null,null,null,null,null,0.05,{"$error":"#NUM!"},null,"00:00:00"]
[null,null,null,null,null,null,0.05,{"$error":"#NUM!"},null,"00:00:00"]
[null,null,null,null,null,null,0.05,{"$error":"#NUM!"},null,"00:00:00"]
[null,null,null,null,null,null,0.05,{"$error":"#NUM!"},null,"00:00:00"]
[null,null,null,null,null,null,0.05,{"$error":"#NUM!"},null,"00:00:00"]
[null,null,null,null,null,null,0.05,{"$error":"#NUM!"},null,"00:00:00"]
[null,null,null,null,null,null,0.05,{"$error":"#NUM!"},null,"00:00:00"]
[null,null,null,null,null,null,0.05,{"$error":"#NUM!"},null,"00:00:00"]
[null,null,null,null,null,null,0.05,{"$error":"#NUM!"},null,"00:00:00"]
[null,null,null,null,null,null,0.05,{"$error":"#NUM!"},null,"00:00:00"]
[null,null,null,null,null,null,0.05,{"$error":"#NUM!"},null,"00:00:00"]
[null,null,null,null,null,null,0.05,{"$error":"#NUM!"},null,"00:00:00"]
[null,null,null,null,null,null,0.05,{"$error":"#NUM!"},null,"00:00:00"]
[null,null,null,null,null,null,0.05,{"$error":"#NUM!"},null,"00:00:00"]
[null,null,null,null,null,null,0.05,{"$error":"#NUM!"},null,"00:00:00"]
[null,null,null,null,null,null,0.05,{"$error":"#NUM!"},null,"00:00:00"]
[null,null,null,null,null,null,0.05,{"$error":"#NUM!"},null,"00:00:00"]
[null,null,null,null,null,null,0.05,{"$error":"#NUM!"},null,"00:00:00"]
[null,null,null,null,null,null,0.05,{"$error":"#NUM!"},null,"00:00:00"]
[null,null,null,null,null,null,0.05,{"$error":"#NUM!"},null,"00:00:00"]
[null,null,null,null,null,null,0.05,{"$error":"#NUM!"},null,"00:00:00"]
[null,null,null,null,null,null,0.05,{"$error":"#NUM!"},null,"00:00:00"]
[null,null,null,null,null,null,0.05,{"$error":"#NUM!"},null,"00:00:00"]
[null,null,null,null,null,null,0.05,{"$error":"#NUM!"},null,"00:00:00"]
[null,null,null,null,null,null,0.05,{"$error":"#NUM!"},null,"00:00:00"]
[null,null,null,null,null,null,0.05,{"$error":"#NUM!"},null,"00:00:00"]
[null,null,null,null,null,null,0.05,{"$error":"#NUM!"},null,"00:00:00"]
[null,null,null,null,null,null,0.05,{"$error":"#NUM!"},null,"00:00:00"]
[null,null,null,null,null,null,0.05,{"$error":"#NUM!"},null,"00:00:00"]
[null,null,null,null,null,null,0.05,{"$error":"#NUM!"},null,"00:00:00"]
[null,null,null,null,null,null,0.05,{"$error":"#NUM!"},null,"00:00:00"]
[null,null,null,null,null,null,0.05,{"$error":"#NUM!"},null,"00:00:00"]
[null,null,null,null,null,null,0.05,{"$f":"-PMT(G195,F195,E195)","v":{"$error":"#NUM!"}},null,{"$f":"+I195+F195*30","v":"00:00:00"}]
[null,null,null,null,null,null,0.05,{"$error":"#NUM!"},null,"00:00:00"]
[null,null,null,null,null,null,0.05,{"$error":"#NUM!"},null,"00:00:00"]
[null,null,null,null,null,null,0.05,{"$error":"#NUM!"},null,"00:00:00"]
[null,null,null,null,null,null,0.05,{"$error":"#NUM!"},null,"00:00:00"]
[null,null,null,null,null,null,0.05,{"$error":"#NUM!"},null,"00:00:00"]
[null,null,null,null,null,null,0.05,{"$error":"#NUM!"},null,"00:00:00"]
[null,null,null,null,null,null,0.05,{"$error":"#NUM!"},null,"00:00:00"]
[null,null,null,null,null,null,0.05,{"$error":"#NUM!"},null,"00:00:00"]
[null,null,null,null,null,null,0.05,{"$error":"#NUM!"},null,"00:00:00"]
[null,null,null,null,null,null,0.05,{"$error":"#NUM!"},null,"00:00:00"]
[null,null,null,null,null,null,0.05,{"$error":"#NUM!"},null,"00:00:00"]
[null,null,null,null,null,null,0.05,{"$error":"#NUM!"},null,"00:00:00"]
[null,null,null,null,null,null,0.05,{"$error":"#NUM!"},null,"00:00:00"]
[null,null,null,null,null,null,0.05,{"$error":"#NUM!"},null,"00:00:00"]
[null,null,null,null,null,null,0.05,{"$error":"#NUM!"},null,"00:00:00"]
[null,null,null,null,null,null,0.05,{"$error":"#NUM!"},null,"00:00:00"]
[null,null,null,null,null,null,0.05,{"$error":"#NUM!"},null,"00:00:00"]
[null,null,null,null,null,null,0.05,{"$error":"#NUM!"},null,"00:00:00"]
[null,null,null,null,null,null,0.05,{"$error":"#NUM!"},null,"00:00:00"]
[null,null,null,null,null,null,0.05,{"$error":"#NUM!"},null,"00:00:00"]
[null,null,null,null,null,null,0.05,{"$error":"#NUM!"},null,"00:00:00"]
[null,null,null,null,null,null,0.05,{"$error":"#NUM!"},null,"00:00:00"]
[null,null,null,null,null,null,0.05,{"$error":"#NUM!"},null,"00:00:00"]
[null,null,null,null,null,null,0.05,{"$error":"#NUM!"},null,"00:00:00"]
[null,null,null,null,null,null,0.05,{"$error":"#NUM!"},null,"00:00:00"]
[null,null,null,null,null,null,0.05,{"$error":"#NUM!"},null,"00:00:00"]
[null,null,null,null,null,null,0.05,{"$error":"#NUM!"},null,"00:00:00"]
[null,null,null,null,null,null,{"$f":"+IF(D223=\"S/.\",0.1,0.05)","v":0.05},{"$error":"#NUM!"},null,"00:00:00"]
[null,null,null,null,null,null,0.05,{"$error":"#NUM!"},null,"00:00:00"]
[null,null,null,null,null,null,0.05,{"$error":"#NUM!"},null,"00:00:00"]
[null,null,null,null,null,null,0.05,{"$error":"#NUM!"},null,"00:00:00"]
[null,null,null,null,null,null,0.05,{"$error":"#NUM!"},null,"00:00:00"]
[null,null,null,null,null,null,0.05,{"$error":"#NUM!"},null,"00:00:00"]
[null,null,null,null,null,null,0.05,{"$error":"#NUM!"},null,"00:00:00"]
[null,null,null,null,null,null,0.05,{"$error":"#NUM!"},null,"00:00:00"]
[null,null,null,null,null,null,0.05,{"$error":"#NUM!"},null,"00:00:00"]
[null,null,null,null,null,null,0.05,{"$error":"#NUM!"},null,"00:00:00"]
[null,null,null,null,null,null,0.05,{"$error":"#NUM!"},null,"00:00:00"]
[null,null,null,null,null,null,0.05,{"$error":"#NUM!"},null,"00:00:00"]
[null,null,null,null,null,null,0.05,{"$error":"#NUM!"},null,"00:00:00"]
[null,null,null,null,null,null,0.05,{"$error":"#NUM!"},null,"00:00:00"]
[null,null,null,null,null,null,0.05,{"$error":"#NUM!"},null,"00:00:00"]
[null,null,null,null,null,null,0.05,{"$error":"#NUM!"},null,"00:00:00"]
[null,null,null,null,null,null,0.05,{"$error":"#NUM!"},null,"00:00:00"]
[null,null,null,null,null,null,0.05,{"$error":"#NUM!"},null,"00:00:00"]
[null,null,null,null,null,null,0.05,{"$error":"#NUM!"},null,"00:00:00"]
[null,null,null,null,null,null,0.05,{"$error":"#NUM!"},null,"00:00:00"]
[null,null,null,null,null,null,0.05,{"$error":"#NUM!"},null,"00:00:00"]
[null,null,null,null,null,null,0.05,{"$error":"#NUM!"},null,"00:00:00"]
[null,null,null,null,null,null,0.05,{"$error":"#NUM!"},null,"00:00:00"]
[null,null,null,null,null,null,0.05,{"$error":"#NUM!"},null,"00:00:00"]
[null,null,null,null,null,null,0.05,{"$error":"#NUM!"},null,"00:00:00"]
[null,null,null,null,null,null,0.05,{"$error":"#NUM!"},null,"00:00:00"]
[null,null,null,null,null,null,0.05,{"$error":"#NUM!"},null,"00:00:00"]
[null,null,null,null,null,null,0.05,{"$error":"#NUM!"},null,"00:00:00"]
[null,null,null,null,null,null,0.05,{"$error":"#NUM!"},null,"00:00:00"]
[null,null,null,null,null,null,0.05,{"$error":"#NUM!"},null,"00:00:00"]
[null,null,null,null,null,null,0.05,{"$error":"#NUM!"},null,"00:00:00"]
[null,null,null,null,null,null,0.05,{"$error":"#NUM!"},null,"00:00:00"]
[null,null,null,null,null,null,0.05,{"$error":"#NUM!"},null,"00:00:00"]
[null,null,null,null,null,null,0.05,{"$error":"#NUM!"},null,"00:00:00"]
[null,null,null,null,null,null,0.05,{"$error":"#NUM!"},null,"00:00:00"]
[null,null,null,null,null,null,0.05,{"$error":"#NUM!"},null,"00:00:00"]
[null,null,null,null,null,null,0.05,{"$f":"-PMT(G259,F259,E259)","v":{"$error":"#NUM!"}},null,{"$f":"+I259+F259*30","v":"00:00:00"}]
[null,null,null,null,null,null,0.05,{"$error":"#NUM!"},null,"00:00:00"]
[null,null,null,null,null,null,0.05,{"$error":"#NUM!"},null,"00:00:00"]
[null,null,null,null,null,null,0.05,{"$error":"#NUM!"},null,"00:00:00"]
[null,null,null,null,null,null,0.05,{"$error":"#NUM!"},null,"00:00:00"]
[null,null,null,null,null,null,0.05,{"$error":"#NUM!"},null,"00:00:00"]
[null,null,null,null,null,null,0.05,{"$error":"#NUM!"},null,"00:00:00"]
[null,null,null,null,null,null,0.05,{"$error":"#NUM!"},null,"00:00:00"]
[null,null,null,null,null,null,0.05,{"$error":"#NUM!"},null,"00:00:00"]
[null,null,null,null,null,null,0.05,{"$error":"#NUM!"},null,"00:00:00"]
[null,null,null,null,null,null,0.05,{"$error":"#NUM!"},null,"00:00:00"]
[null,null,null,null,null,null,0.05,{"$error":"#NUM!"},null,"00:00:00"]
[null,null,null,null,null,null,0.05,{"$error":"#NUM!"},null,"00:00:00"]
[null,null,null,null,null,null,0.05,{"$error":"#NUM!"},null,"00:00:00"]
[null,null,null,null,null,null,0.05,{"$error":"#NUM!"},null,"00:00:00"]
[null,null,null,null,null,null,0.05,{"$error":"#NUM!"},null,"00:00:00"]
[null,null,null,null,null,null,0.05,{"$error":"#NUM!"},null,"00:00:00"]
[null,null,null,null,null,null,0.05,{"$error":"#NUM!"},null,"00:00:00"]
[null,null,null,null,null,null,0.05,{"$error":"#NUM!"},null,"00:00:00"]
[null,null,null,null,null,null,0.05,{"$error":"#NUM!"},null,"00:00:00"]
[null,null,null,null,null,null,0.05,{"$error":"#NUM!"},null,"00:00:00"]
[null,null,null,null,null,null,0.05,{"$error":"#NUM!"},null,"00:00:00"]
[null,null,null,null,null,null,0.05,{"$error":"#NUM!"},null,"00:00:00"]
[null,null,null,null,null,null,0.05,{"$error":"#NUM!"},null,"00:00:00"]
[null,null,null,null,null,null,0.05,{"$error":"#NUM!"},null,"00:00:00"]
[null,null,null,null,null,null,0.05,{"$error":"#NUM!"},null,"00:00:00"]
[null,null,null,null,null,null,0.05,{"$error":"#NUM!"},null,"00:00:00"]
[null,null,null,null,null,null,0.05,{"$error":"#NUM!"},null,"00:00:00"]
[null,null,null,null,null,null,{"$f":"+IF(D287=\"S/.\",0.1,0.05)","v":0.05},{"$error":"#NUM!"},null,"00:00:00"]
[null,null,null,null,null,null,0.05,{"$error":"#NUM!"},null,"00:00:00"]
[null,null,null,null,null,null,0.05,{"$error":"#NUM!"},null,"00:00:00"]
[null,null,null,null,null,null,0.05,{"$error":"#NUM!"},null,"00:00:00"]
[null,null,null,null,null,null,0.05,{"$error":"#NUM!"},null,"00:00:00"]
[null,null,null,null,null,null,0.05,{"$error":"#NUM!"},null,"00:00:00"]
[null,null,null,null,null,null,0.05,{"$error":"#NUM!"},null,"00:00:00"]
[null,null,null,null,null,null,0.05,{"$error":"#NUM!"},null,"00:00:00"]
[null,null,null,null,null,null,0.05,{"$error":"#NUM!"},null,"00:00:00"]
[null,null,null,null,null,null,0.05,{"$error":"#NUM!"},null,"00:00:00"]
[null,null,null,null,null,null,0.05,{"$error":"#NUM!"},null,"00:00:00"]
[null,null,null,null,null,null,0.05,{"$error":"#NUM!"},null,"00:00:00"]
[null,null,null,null,null,null,0.05,{"$error":"#NUM!"},null,"00:00:00"]
[null,null,null,null,null,null,0.05,{"$error":"#NUM!"},null,"00:00:00"]
[null,null,null,null,null,null,0.05,{"$error":"#NUM!"},null,"00:00:00"]
[null,null,null,null,null,null,0.05,{"$error":"#NUM!"},null,"00:00:00"]
[null,null,null,null,null,null,0.05,{"$error":"#NUM!"},null,"00:00:00"]
[null,null,null,null,null,null,0.05,{"$error":"#NUM!"},null,"00:00:00"]
[null,null,null,null,null,null,0.05,{"$error":"#NUM!"},null,"00:00:00"]
[null,null,null,null,null,null,0.05,{"$error":"#NUM!"},null,"00:00:00"]
[null,null,null,null,null,null,0.05,{"$error":"#NUM!"},null,"00:00:00"]
[null,null,null,null,null,null,0.05,{"$error":"#NUM!"},null,"00:00:00"]
[null,null,null,null,null,null,0.05,{"$error":"#NUM!"},null,"00:00:00"]
[null,null,null,null,null,null,0.05,{"$error":"#NUM!"},null,"00:00:00"]
[null,null,null,null,null,null,0.05,{"$error":"#NUM!"},null,"00:00:00"]
[null,null,null,null,null,null,0.05,{"$error":"#NUM!"},null,"00:00:00"]
[null,null,null,null,null,null,0.05,{"$error":"#NUM!"},null,"00:00:00"]
[null,null,null,null,null,null,0.05,{"$error":"#NUM!"},null,"00:00:00"]
[null,null,null,null,null,null,0.05,{"$error":"#NUM!"},null,"00:00:00"]
[null,null,null,null,null,null,0.05,{"$error":"#NUM!"},null,"00:00:00"]
[null,null,null,null,null,null,0.05,{"$error":"#NUM!"},null,"00:00:00"]
[null,null,null,null,null,null,0.05,{"$error":"#NUM!"},null,"00:00:00"]
[null,null,null,null,null,null,0.05,{"$error":"#NUM!"},null,"00:00:00"]
[null,null,null,null,null,null,0.05,{"$error":"#NUM!"},null,"00:00:00"]
[null,null,null,null,null,null,0.05,{"$error":"#NUM!"},null,"00:00:00"]
[null,null,null,null,null,null,0.05,{"$error":"#NUM!"},null,"00:00:00"]
[null,null,null,null,null,null,0.05,{"$f":"-PMT(G323,F323,E323)","v":{"$error":"#NUM!"}},null,{"$f":"+I323+F323*30","v":"00:00:00"}]
[null,null,null,null,null,null,0.05,{"$error":"#NUM!"},null,"00:00:00"]
[null,null,null,null,null,null,0.05,{"$error":"#NUM!"},null,"00:00:00"]
[null,null,null,null,null,null,0.05,{"$error":"#NUM!"},null,"00:00:00"]
[null,null,null,null,null,null,0.05,{"$error":"#NUM!"},null,"00:00:00"]
[null,null,null,null,null,null,0.05,{"$error":"#NUM!"},null,"00:00:00"]
[null,null,null,null,null,null,0.05,{"$error":"#NUM!"},null,"00:00:00"]
[null,null,null,null,null,null,0.05,{"$error":"#NUM!"},null,"00:00:00"]
[null,null,null,null,null,null,0.05,{"$error":"#NUM!"},null,"00:00:00"]
[null,null,null,null,null,null,0.05,{"$error":"#NUM!"},null,"00:00:00"]
[null,null,null,null,null,null,0.05,{"$error":"#NUM!"},null,"00:00:00"]
[null,null,null,null,null,null,0.05,{"$error":"#NUM!"},null,"00:00:00"]
[null,null,null,null,null,null,0.05,{"$error":"#NUM!"},null,"00:00:00"]
[null,null,null,null,null,null,0.05,{"$error":"#NUM!"},null,"00:00:00"]
[null,null,null,null,null,null,0.05,{"$error":"#NUM!"},null,"00:00:00"]
[null,null,null,null,null,null,0.05,{"$error":"#NUM!"},null,"00:00:00"]
[null,null,null,null,null,null,0.05,{"$error":"#NUM!"},null,"00:00:00"]
[null,null,null,null,null,null,0.05,{"$error":"#NUM!"},null,"00:00:00"]
[null,null,null,null,null,null,0.05,{"$error":"#NUM!"},null,"00:00:00"]
[null,null,null,null,null,null,0.05,{"$error":"#NUM!"},null,"00:00:00"]
[null,null,null,null,null,null,0.05,{"$error":"#NUM!"},null,"00:00:00"]
[null,null,null,null,null,null,0.05,{"$error":"#NUM!"},null,"00:00:00"]
[null,null,null,null,null,null,0.05,{"$error":"#NUM!"},null,"00:00:00"]
[null,null,null,null,null,null,0.05,{"$error":"#NUM!"},null,"00:00:00"]
[null,null,null,null,null,null,0.05,{"$error":"#NUM!"},null,"00:00:00"]
[null,null,null,null,null,null,0.05,{"$error":"#NUM!"},null,"00:00:00"]
[null,null,null,null,null,null,0.05,{"$error":"#NUM!"},null,"00:00:00"]
[null,null,null,null,null,null,0.05,{"$error":"#NUM!"},null,"00:00:00"]
[null,null,null,null,null,null,{"$f":"+IF(D351=\"S/.\",0.1,0.05)","v":0.05},{"$error":"#NUM!"},null,"00:00:00"]
[null,null,null,null,null,null,0.05,{"$error":"#NUM!"},null,"00:00:00"]
[null,null,null,null,null,null,0.05,{"$error":"#NUM!"},null,"00:00:00"]
[null,null,null,null,null,null,0.05,{"$error":"#NUM!"},null,"00:00:00"]
[null,null,null,null,null,null,0.05,{"$error":"#NUM!"},null,"00:00:00"]
[null,null,null,null,null,null,0.05,{"$error":"#NUM!"},null,"00:00:00"]
[null,null,null,null,null,null,0.05,{"$error":"#NUM!"},null,"00:00:00"]
[null,null,null,null,null,null,0.05,{"$error":"#NUM!"},null,"00:00:00"]
[null,null,null,null,null,null,0.05,{"$error":"#NUM!"},null,"00:00:00"]
[null,null,null,null,null,null,0.05,{"$error":"#NUM!"},null,"00:00:00"]
[null,null,null,null,null,null,0.05,{"$error":"#NUM!"},null,"00:00:00"]
[null,null,null,null,null,null,0.05,{"$error":"#NUM!"},null,"00:00:00"]
[null,null,null,null,null,null,0.05,{"$error":"#NUM!"},null,"00:00:00"]
[null,null,null,null,null,null,0.05,{"$error":"#NUM!"},null,"00:00:00"]
[null,null,null,null,null,null,0.05,{"$error":"#NUM!"},null,"00:00:00"]
[null,null,null,null,null,null,0.05,{"$error":"#NUM!"},null,"00:00:00"]
[null,null,null,null,null,null,0.05,{"$error":"#NUM!"},null,"00:00:00"]
[null,null,null,null,null,null,0.05,{"$error":"#NUM!"},null,"00:00:00"]
[null,null,null,null,null,null,0.05,{"$error":"#NUM!"},null,"00:00:00"]
[null,null,null,null,null,null,0.05,{"$error":"#NUM!"},null,"00:00:00"]
[null,null,null,null,null,null,0.05,{"$error":"#NUM!"},null,"00:00:00"]
[null,null,null,null,null,null,0.05,{"$error":"#NUM!"},null,"00:00:00"]
[null,null,null,null,null,null,0.05,{"$error":"#NUM!"},null,"00:00:00"]
[null,null,null,null,null,null,0.05,{"$error":"#NUM!"},null,"00:00:00"]
[null,null,null,null,null,null,0.05,{"$error":"#NUM!"},null,"00:00:00"]
[null,null,null,null,null,null,0.05,{"$error":"#NUM!"},null,"00:00:00"]
[null,null,null,null,null,null,0.05,{"$error":"#NUM!"},null,"00:00:00"]
[null,null,null,null,null,null,0.05,{"$error":"#NUM!"},null,"00:00:00"]
[null,null,null,null,null,null,0.05,{"$error":"#NUM!"},null,"00:00:00"]
[null,null,null,null,null,null,0.05,{"$error":"#NUM!"},null,"00:00:00"]
[null,null,null,null,null,null,0.05,{"$error":"#NUM!"},null,"00:00:00"]
[null,null,null,null,null,null,0.05,{"$error":"#NUM!"},null,"00:00:00"]
[null,null,null,null,null,null,0.05,{"$error":"#NUM!"},null,"00:00:00"]
[null,null,null,null,null,null,0.05,{"$error":"#NUM!"},null,"00:00:00"]
[null,null,null,null,null,null,0.05,{"$error":"#NUM!"},null,"00:00:00"]
[null,null,null,null,null,null,0.05,{"$error":"#NUM!"},null,"00:00:00"]
[null,null,null,null,null,null,0.05,{"$f":"-PMT(G387,F387,E387)","v":{"$error":"#NUM!"}},null,{"$f":"+I387+F387*30","v":"00:00:00"}]
[null,null,null,null,null,null,0.05,{"$error":"#NUM!"},null,"00:00:00"]
[null,null,null,null,null,null,0.05,{"$error":"#NUM!"},null,"00:00:00"]
[null,null,null,null,null,null,0.05,{"$error":"#NUM!"},null,"00:00:00"]
[null,null,null,null,null,null,0.05,{"$error":"#NUM!"},null,"00:00:00"]
[null,null,null,null,null,null,0.05,{"$error":"#NUM!"},null,"00:00:00"]
[null,null,null,null,null,null,0.05,{"$error":"#NUM!"},null,"00:00:00"]
[null,null,null,null,null,null,0.05,{"$error":"#NUM!"},null,"00:00:00"]
[null,null,null,null,null,null,0.05,{"$error":"#NUM!"},null,"00:00:00"]
[null,null,null,null,null,null,0.05,{"$error":"#NUM!"},null,"00:00:00"]
[null,null,null,null,null,null,0.05,{"$error":"#NUM!"},null,"00:00:00"]
[null,null,null,null,null,null,0.05,{"$error":"#NUM!"},null,"00:00:00"]
[null,null,null,null,null,null,0.05,{"$error":"#NUM!"},null,"00:00:00"]
[null,null,null,null,null,null,0.05,{"$error":"#NUM!"},null,"00:00:00"]
[null,null,null,null,null,null,0.05,{"$error":"#NUM!"},null,"00:00:00"]
[null,null,null,null,null,null,0.05,{"$error":"#NUM!"},null,"00:00:00"]
[null,null,null,null,null,null,0.05,{"$error":"#NUM!"},null,"00:00:00"]
[null,null,null,null,null,null,0.05,{"$error":"#NUM!"},null,"00:00:00"]
[null,null,null,null,null,null,0.05,{"$error":"#NUM!"},null,"00:00:00"]
[null,null,null,null,null,null,0.05,{"$error":"#NUM!"},null,"00:00:00"]
[null,null,null,null,null,null,0.05,{"$error":"#NUM!"},null,"00:00:00"]
[null,null,null,null,null,null,0.05,{"$error":"#NUM!"},null,"00:00:00"]
[null,null,null,null,null,null,0.05,{"$error":"#NUM!"},null,"00:00:00"]
[null,null,null,null,null,null,0.05,{"$error":"#NUM!"},null,"00:00:00"]
[null,null,null,null,null,null,0.05,{"$error":"#NUM!"},null,"00:00:00"]
[null,null,null,null,null,null,0.05,{"$error":"#NUM!"},null,"00:00:00"]
[null,null,null,null,null,null,0.05,{"$error":"#NUM!"},null,"00:00:00"]
[null,null,null,null,null,null,0.05,{"$error":"#NUM!"},null,"00:00:00"]
[null,null,null,null,null,null,{"$f":"+IF(D415=\"S/.\",0.1,0.05)","v":0.05},{"$error":"#NUM!"},null,"00:00:00"]
[null,null,null,null,null,null,0.05,{"$error":"#NUM!"},null,"00:00:00"]
[null,null,null,null,null,null,0.05,{"$error":"#NUM!"},null,"00:00:00"]
[null,null,null,null,null,null,0.05,{"$error":"#NUM!"},null,"00:00:00"]
[null,null,null,null,null,null,0.05,{"$error":"#NUM!"},null,"00:00:00"]
[null,null,null,null,null,null,0.05,{"$error":"#NUM!"},null,"00:00:00"]
[null,null,null,null,null,null,0.05,{"$error":"#NUM!"},null,"00:00:00"]
[null,null,null,null,null,null,0.05,{"$error":"#NUM!"},null,"00:00:00"]
[null,null,null,null,null,null,0.05,{"$error":"#NUM!"},null,"00:00:00"]
[null,null,null,null,null,null,0.05,{"$error":"#NUM!"},null,"00:00:00"]
[null,null,null,null,null,null,0.05,{"$error":"#NUM!"},null,"00:00:00"]
[null,null,null,null,null,null,0.05,{"$error":"#NUM!"},null,"00:00:00"]
[null,null,null,null,null,null,0.05,{"$error":"#NUM!"},null,"00:00:00"]
[null,null,null,null,null,null,0.05,{"$error":"#NUM!"},null,"00:00:00"]
[null,null,null,null,null,null,0.05,{"$error":"#NUM!"},null,"00:00:00"]
[null,null,null,null,null,null,0.05,{"$error":"#NUM!"},null,"00:00:00"]
[null,null,null,null,null,null,0.05,{"$error":"#NUM!"},null,"00:00:00"]
[null,null,null,null,null,null,0.05,{"$error":"#NUM!"},null,"00:00:00"]
[null,null,null,null,null,null,0.05,{"$error":"#NUM!"},null,"00:00:00"]
[null,null,null,null,null,null,0.05,{"$error":"#NUM!"},null,"00:00:00"]
[null,null,null,null,null,null,0.05,{"$error":"#NUM!"},null,"00:00:00"]
[null,null,null,null,null,null,0.05,{"$error":"#NUM!"},null,"00:00:00"]
[null,null,null,null,null,null,0.05,{"$error":"#NUM!"},null,"00:00:00"]
[null,null,null,null,null,null,0.05,{"$error":"#NUM!"},null,"00:00:00"]
[null,null,null,null,null,null,0.05,{"$error":"#NUM!"},null,"00:00:00"]
[null,null,null,null,null,null,0.05,{"$error":"#NUM!"},null,"00:00:00"]
[null,null,null,null,null,null,0.05,{"$error":"#NUM!"},null,"00:00:00"]
[null,null,null,null,null,null,0.05,{"$error":"#NUM!"},null,"00:00:00"]
[null,null,null,null,null,null,0.05,{"$error":"#NUM!"},null,"00:00:00"]
[null,null,null,null,null,null,0.05,{"$error":"#NUM!"},null,"00:00:00"]
[null,null,null,null,null,null,0.05,{"$error":"#NUM!"},null,"00:00:00"]
[null,null,null,null,null,null,0.05,{"$error":"#NUM!"},null,"00:00:00"]
[null,null,null,null,null,null,0.05,{"$error":"#NUM!"},null,"00:00:00"]
[null,null,null,null,null,null,0.05,{"$error":"#NUM!"},null,"00:00:00"]
[null,null,null,null,null,null,0.05,{"$error":"#NUM!"},null,"00:00:00"]
[null,null,null,null,null,null,0.05,{"$error":"#NUM!"},null,"00:00:00"]
[null,null,null,null,null,null,0.05,{"$f":"-PMT(G451,F451,E451)","v":{"$error":"#NUM!"}},null,{"$f":"+I451+F451*30","v":"00:00:00"}]
[null,null,null,null,null,null,0.05,{"$error":"#NUM!"},null,"00:00:00"]
[null,null,null,null,null,null,0.05,{"$error":"#NUM!"},null,"00:00:00"]
[null,null,null,null,null,null,0.05,{"$error":"#NUM!"},null,"00:00:00"]
[null,null,null,null,null,null,0.05,{"$error":"#NUM!"},null,"00:00:00"]
[null,null,null,null,null,null,0.05,{"$error":"#NUM!"},null,"00:00:00"]
[null,null,null,null,null,null,0.05,{"$error":"#NUM!"},null,"00:00:00"]
[null,null,null,null,null,null,0.05,{"$error":"#NUM!"},null,"00:00:00"]
[null,null,null,null,null,null,0.05,{"$error":"#NUM!"},null,"00:00:00"]
[null,null,null,null,null,null,0.05,{"$error":"#NUM!"},null,"00:00:00"]
[null,null,null,null,null,null,0.05,{"$error":"#NUM!"},null,"00:00:00"]
[null,null,null,null,null,null,0.05,{"$error":"#NUM!"},null,"00:00:00"]
[null,null,null,null,null,null,0.05,{"$error":"#NUM!"},null,"00:00:00"]
[null,null,null,null,null,null,0.05,{"$error":"#NUM!"},null,"00:00:00"]
[null,null,null,null,null,null,0.05,{"$error":"#NUM!"},null,"00:00:00"]
[null,null,null,null,null,null,0.05,{"$error":"#NUM!"},null,"00:00:00"]
[null,null,null,null,null,null,0.05,{"$error":"#NUM!"},null,"00:00:00"]
[null,null,null,null,null,null,0.05,{"$error":"#NUM!"},null,"00:00:00"]
[null,null,null,null,null,null,0.05,{"$error":"#NUM!"},null,"00:00:00"]
[null,null,null,null,null,null,0.05,{"$error":"#NUM!"},null,"00:00:00"]
[null,null,null,null,null,null,0.05,{"$error":"#NUM!"},null,"00:00:00"]
[null,null,null,null,null,null,0.05,{"$error":"#NUM!"},null,"00:00:00"]
[null,null,null,null,null,null,0.05,{"$error":"#NUM!"},null,"00:00:00"]
[null,null,null,null,null,null,0.05,{"$error":"#NUM!"},null,"00:00:00"]
[null,null,null,null,null,null,0.05,{"$error":"#NUM!"},null,"00:00:00"]
[null,null,null,null,null,null,0.05,{"$error":"#NUM!"},null,"00:00:00"]
[null,null,null,null,null,null,0.05,{"$error":"#NUM!"},null,"00:00:00"]
[null,null,null,null,null,null,0.05,{"$error":"#NUM!"},null,"00:00:00"]
[null,null,null,null,null,null,{"$f":"+IF(D479=\"S/.\",0.1,0.05)","v":0.05},{"$error":"#NUM!"},null,"00:00:00"]
[null,null,null,null,null,null,0.05,{"$error":"#NUM!"},null,"00:00:00"]
[null,null,null,null,null,null,0.05,{"$error":"#NUM!"},null,"00:00:00"]
[null,null,null,null,null,null,0.05,{"$error":"#NUM!"},null,"00:00:00"]
[null,null,null,null,null,null,0.05,{"$error":"#NUM!"},null,"00:00:00"]
[null,null,null,null,null,null,0.05,{"$error":"#NUM!"},null,"00:00:00"]
[null,null,null,null,null,null,0.05,{"$error":"#NUM!"},null,"00:00:00"]
[null,null,null,null,null,null,0.05,{"$error":"#NUM!"},null,"00:00:00"]
[null,null,null,null,null,null,0.05,{"$error":"#NUM!"},null,"00:00:00"]
[null,null,null,null,null,null,0.05,{"$error":"#NUM!"},null,"00:00:00"]
[null,null,null,null,null,null,0.05,{"$error":"#NUM!"},null,"00:00:00"]
[null,null,null,null,null,null,0.05,{"$error":"#NUM!"},null,"00:00:00"]
[null,null,null,null,null,null,0.05,{"$error":"#NUM!"},null,"00:00:00"]
[null,null,null,null,null,null,0.05,{"$error":"#NUM!"},null,"00:00:00"]
[null,null,null,null,null,null,0.05,{"$error":"#NUM!"},null,"00:00:00"]
[null,null,null,null,null,null,0.05,{"$error":"#NUM!"},null,"00:00:00"]
[null,null,null,null,null,null,0.05,{"$error":"#NUM!"},null,"00:00:00"]
[null,null,null,null,null,null,0.05,{"$error":"#NUM!"},null,"00:00:00"]
[null,null,null,null,null,null,0.05,{"$error":"#NUM!"},null,"00:00:00"]
[null,null,null,null,null,null,0.05,{"$error":"#NUM!"},null,"00:00:00"]
[null,null,null,null,null,null,0.05,{"$error":"#NUM!"},null,"00:00:00"]
[null,null,null,null,null,null,0.05,{"$error":"#NUM!"},null,"00:00:00"]
[null,null,null,null,null,null,0.05,{"$error":"#NUM!"},null,"00:00:00"]
[null,null,null,null,null,null,0.05,{"$error":"#NUM!"},null,"00:00:00"]
[null,null,null,null,null,null,0.05,{"$error":"#NUM!"},null,"00:00:00"]
[null,null,null,null,null,null,0.05,{"$error":"#NUM!"},null,"00:00:00"]
[null,null,null,null,null,null,0.05,{"$error":"#NUM!"},null,"00:00:00"]
[null,null,null,null,null,null,0.05,{"$error":"#NUM!"},null,"00:00:00"]
[null,null,null,null,null,null,0.05,{"$error":"#NUM!"},null,"00:00:00"]
[null,null,null,null,null,null,0.05,{"$error":"#NUM!"},null,"00:00:00"]
[null,null,null,null,null,null,0.05,{"$error":"#NUM!"},null,"00:00:00"]
[null,null,null,null,null,null,0.05,{"$error":"#NUM!"},null,"00:00:00"]
[null,null,null,null,null,null,0.05,{"$error":"#NUM!"},null,"00:00:00"]
[null,null,null,null,null,null,0.05,{"$error":"#NUM!"},null,"00:00:00"]
[null,null,null,null,null,null,0.05,{"$error":"#NUM!"},null,"00:00:00"]
[null,null,null,null,null,null,0.05,{"$error":"#NUM!"},null,"00:00:00"]
[null,null,null,null,null,null,0.05,{"$f":"-PMT(G515,F515,E515)","v":{"$error":"#NUM!"}},null,{"$f":"+I515+F515*30","v":"00:00:00"}]
[null,null,null,null,null,null,0.05,{"$error":"#NUM!"},null,"00:00:00"]
[null,null,null,null,null,null,0.05,{"$error":"#NUM!"},null,"00:00:00"]
[null,null,null,null,null,null,0.05,{"$error":"#NUM!"},null,"00:00:00"]
[null,null,null,null,null,null,0.05,{"$error":"#NUM!"},null,"00:00:00"]
[null,null,null,null,null,null,0.05,{"$error":"#NUM!"},null,"00:00:00"]
[null,null,null,null,null,null,0.05,{"$error":"#NUM!"},null,"00:00:00"]
[null,null,null,null,null,null,0.05,{"$error":"#NUM!"},null,"00:00:00"]
[null,null,null,null,null,null,0.05,{"$error":"#NUM!"},null,"00:00:00"]
[null,null,null,null,null,null,0.05,{"$error":"#NUM!"},null,"00:00:00"]
[null,null,null,null,null,null,0.05,{"$error":"#NUM!"},null,"00:00:00"]
[null,null,null,null,null,null,0.05,{"$error":"#NUM!"},null,"00:00:00"]
[null,null,null,null,null,null,0.05,{"$error":"#NUM!"},null,"00:00:00"]
[null,null,null,null,null,null,0.05,{"$error":"#NUM!"},null,"00:00:00"]
[null,null,null,null,null,null,0.05,{"$error":"#NUM!"},null,"00:00:00"]
[null,null,null,null,null,null,0.05,{"$error":"#NUM!"},null,"00:00:00"]
[null,null,null,null,null,null,0.05,{"$error":"#NUM!"},null,"00:00:00"]
[null,null,null,null,null,null,0.05,{"$error":"#NUM!"},null,"00:00:00"]
[null,null,null,null,null,null,0.05,{"$error":"#NUM!"},null,"00:00:00"]
[null,null,null,null,null,null,0.05,{"$error":"#NUM!"},null,"00:00:00"]
[null,null,null,null,null,null,0.05,{"$error":"#NUM!"},null,"00:00:00"]
[null,null,null,null,null,null,0.05,{"$error":"#NUM!"},null,"00:00:00"]
[null,null,null,null,null,null,0.05,{"$error":"#NUM!"},null,"00:00:00"]
[null,null,null,null,null,null,0.05,{"$error":"#NUM!"},null,"00:00:00"]
[null,null,null,null,null,null,0.05,{"$error":"#NUM!"},null,"00:00:00"]
[null,null,null,null,null,null,0.05,{"$error":"#NUM!"},null,"00:00:00"]
[null,null,null,null,null,null,0.05,{"$error":"#NUM!"},null,"00:00:00"]
[null,null,null,null,null,null,0.05,{"$error":"#NUM!"},null,"00:00:00"]
[null,null,null,null,null,null,{"$f":"+IF(D543=\"S/.\",0.1,0.05)","v":0.05},{"$error":"#NUM!"},null,"00:00:00"]
[null,null,null,null,null,null,0.05,{"$error":"#NUM!"},null,"00:00:00"]
[null,null,null,null,null,null,0.05,{"$error":"#NUM!"},null,"00:00:00"]
[null,null,null,null,null,null,0.05,{"$error":"#NUM!"},null,"00:00:00"]
[null,null,null,null,null,null,0.05,{"$error":"#NUM!"},null,"00:00:00"]
[null,null,null,null,null,null,0.05,{"$error":"#NUM!"},null,"00:00:00"]
[null,null,null,null,null,null,0.05,{"$error":"#NUM!"},null,"00:00:00"]
[null,null,null,null,null,null,0.05,{"$error":"#NUM!"},null,"00:00:00"]
[null,null,null,null,null,null,0.05,{"$error":"#NUM!"},null,"00:00:00"]
[null,null,null,null,null,null,0.05,{"$error":"#NUM!"},null,"00:00:00"]
[null,null,null,null,null,null,0.05,{"$error":"#NUM!"},null,"00:00:00"]
[null,null,null,null,null,null,0.05,{"$error":"#NUM!"},null,"00:00:00"]
[null,null,null,null,null,null,0.05,{"$error":"#NUM!"},null,"00:00:00"]
[null,null,null,null,null,null,0.05,{"$error":"#NUM!"},null,"00:00:00"]
[null,null,null,null,null,null,0.05,{"$error":"#NUM!"},null,"00:00:00"]
[null,null,null,null,null,null,0.05,{"$error":"#NUM!"},null,"00:00:00"]
[null,null,null,null,null,null,0.05,{"$error":"#NUM!"},null,"00:00:00"]
[null,null,null,null,null,null,0.05,{"$error":"#NUM!"},null,"00:00:00"]
[null,null,null,null,null,null,0.05,{"$error":"#NUM!"},null,"00:00:00"]
[null,null,null,null,null,null,0.05,{"$error":"#NUM!"},null,"00:00:00"]
[null,null,null,null,null,null,0.05,{"$error":"#NUM!"},null,"00:00:00"]
[null,null,null,null,null,null,0.05,{"$error":"#NUM!"},null,"00:00:00"]
[null,null,null,null,null,null,0.05,{"$error":"#NUM!"},null,"00:00:00"]
[null,null,null,null,null,null,0.05,{"$error":"#NUM!"},null,"00:00:00"]
[null,null,null,null,null,null,0.05,{"$error":"#NUM!"},null,"00:00:00"]
[null,null,null,null,null,null,0.05,{"$error":"#NUM!"},null,"00:00:00"]
[null,null,null,null,null,null,0.05,{"$error":"#NUM!"},null,"00:00:00"]
[null,null,null,null,null,null,0.05,{"$error":"#NUM!"},null,"00:00:00"]
[null,null,null,null,null,null,0.05,{"$error":"#NUM!"},null,"00:00:00"]
[null,null,null,null,null,null,0.05,{"$error":"#NUM!"},null,"00:00:00"]
[null,null,null,null,null,null,0.05,{"$error":"#NUM!"},null,"00:00:00"]
[null,null,null,null,null,null,0.05,{"$error":"#NUM!"},null,"00:00:00"]
[null,null,null,null,null,null,0.05,{"$error":"#NUM!"},null,"00:00:00"]
[null,null,null,null,null,null,0.05,{"$error":"#NUM!"},null,"00:00:00"]
[null,null,null,null,null,null,0.05,{"$error":"#NUM!"},null,"00:00:00"]
[null,null,null,null,null,null,0.05,{"$error":"#NUM!"},null,"00:00:00"]
[null,null,null,null,null,null,0.05,{"$f":"-PMT(G579,F579,E579)","v":{"$error":"#NUM!"}},null,{"$f":"+I579+F579*30","v":"00:00:00"}]
[null,null,null,null,null,null,0.05,{"$error":"#NUM!"},null,"00:00:00"]
[null,null,null,null,null,null,0.05,{"$error":"#NUM!"},null,"00:00:00"]
[null,null,null,null,null,null,0.05,{"$error":"#NUM!"},null,"00:00:00"]
[null,null,null,null,null,null,0.05,{"$error":"#NUM!"},null,"00:00:00"]
[null,null,null,null,null,null,0.05,{"$error":"#NUM!"},null,"00:00:00"]
[null,null,null,null,null,null,0.05,{"$error":"#NUM!"},null,"00:00:00"]
[null,null,null,null,null,null,0.05,{"$error":"#NUM!"},null,"00:00:00"]
[null,null,null,null,null,null,0.05,{"$error":"#NUM!"},null,"00:00:00"]
[null,null,null,null,null,null,0.05,{"$error":"#NUM!"},null,"00:00:00"]
[null,null,null,null,null,null,0.05,{"$error":"#NUM!"},null,"00:00:00"]
[null,null,null,null,null,null,0.05,{"$error":"#NUM!"},null,"00:00:00"]
[null,null,null,null,null,null,0.05,{"$error":"#NUM!"},null,"00:00:00"]
[null,null,null,null,null,null,0.05,{"$error":"#NUM!"},null,"00:00:00"]
[null,null,null,null,null,null,0.05,{"$error":"#NUM!"},null,"00:00:00"]
[null,null,null,null,null,null,0.05,{"$error":"#NUM!"},null,"00:00:00"]
[null,null,null,null,null,null,0.05,{"$error":"#NUM!"},null,"00:00:00"]
[null,null,null,null,null,null,0.05,{"$error":"#NUM!"},null,"00:00:00"]
[null,null,null,null,null,null,0.05,{"$error":"#NUM!"},null,"00:00:00"]
[null,null,null,null,null,null,0.05,{"$error":"#NUM!"},null,"00:00:00"]
[null,null,null,null,null,null,0.05,{"$error":"#NUM!"},null,"00:00:00"]
[null,null,null,null,null,null,0.05,{"$error":"#NUM!"},null,"00:00:00"]
[null,null,null,null,null,null,0.05,{"$error":"#NUM!"},null,"00:00:00"]
[null,null,null,null,null,null,0.05,{"$error":"#NUM!"},null,"00:00:00"]
[null,null,null,null,null,null,0.05,{"$error":"#NUM!"},null,"00:00:00"]
[null,null,null,null,null,null,0.05,{"$error":"#NUM!"},null,"00:00:00"]
[null,null,null,null,null,null,0.05,{"$error":"#NUM!"},null,"00:00:00"]
[null,null,null,null,null,null,0.05,{"$error":"#NUM!"},null,"00:00:00"]
[null,null,null,null,null,null,{"$f":"+IF(D607=\"S/.\",0.1,0.05)","v":0.05},{"$error":"#NUM!"},null,"00:00:00"]
[null,null,null,null,null,null,0.05,{"$error":"#NUM!"},null,"00:00:00"]
[null,null,null,null,null,null,0.05,{"$error":"#NUM!"},null,"00:00:00"]
[null,null,null,null,null,null,0.05,{"$error":"#NUM!"},null,"00:00:00"]
[null,null,null,null,null,null,0.05,{"$error":"#NUM!"},null,"00:00:00"]
[null,null,null,null,null,null,0.05,{"$error":"#NUM!"},null,"00:00:00"]
[null,null,null,null,null,null,0.05,{"$error":"#NUM!"},null,"00:00:00"]
[null,null,null,null,null,null,0.05,{"$error":"#NUM!"},null,"00:00:00"]
[null,null,null,null,null,null,0.05,{"$error":"#NUM!"},null,"00:00:00"]
[null,null,null,null,null,null,0.05,{"$error":"#NUM!"},null,"00:00:00"]
[null,null,null,null,null,null,0.05,{"$error":"#NUM!"},null,"00:00:00"]
[null,null,null,null,null,null,0.05,{"$error":"#NUM!"},null,"00:00:00"]
[null,null,null,null,null,null,0.05,{"$error":"#NUM!"},null,"00:00:00"]
[null,null,null,null,null,null,0.05,{"$error":"#NUM!"},null,"00:00:00"]
[null,null,null,null,null,null,0.05,{"$error":"#NUM!"},null,"00:00:00"]
[null,null,null,null,null,null,0.05,{"$error":"#NUM!"},null,"00:00:00"]
[null,null,null,null,null,null,0.05,{"$error":"#NUM!"},null,"00:00:00"]
[null,null,null,null,null,null,0.05,{"$error":"#NUM!"},null,"00:00:00"]
[null,null,null,null,null,null,0.05,{"$error":"#NUM!"},null,"00:00:00"]
[null,null,null,null,null,null,0.05,{"$error":"#NUM!"},null,"00:00:00"]
[null,null,null,null,null,null,0.05,{"$error":"#NUM!"},null,"00:00:00"]
[null,null,null,null,null,null,0.05,{"$error":"#NUM!"},null,"00:00:00"]
[null,null,null,null,null,null,0.05,{"$error":"#NUM!"},null,"00:00:00"]
[null,null,null,null,null,null,0.05,{"$error":"#NUM!"},null,"00:00:00"]
[null,null,null,null,null,null,0.05,{"$error":"#NUM!"},null,"00:00:00"]
[null,null,null,null,null,null,0.05,{"$error":"#NUM!"},null,"00:00:00"]
[null,null,null,null,null,null,0.05,{"$error":"#NUM!"},null,"00:00:00"]
[null,null,null,null,null,null,0.05,{"$error":"#NUM!"},null,"00:00:00"]
[null,null,null,null,null,null,0.05,{"$error":"#NUM!"},null,"00:00:00"]
[null,null,null,null,null,null,0.05,{"$error":"#NUM!"},null,"00:00:00"]
[null,null,null,null,null,null,0.05,{"$error":"#NUM!"},null,"00:00:00"]
[null,null,null,null,null,null,0.05,{"$error":"#NUM!"},null,"00:00:00"]
[null,null,null,null,null,null,0.05,{"$error":"#NUM!"},null,"00:00:00"]
[null,null,null,null,null,null,0.05,{"$error":"#NUM!"},null,"00:00:00"]
[null,null,null,null,null,null,0.05,{"$error":"#NUM!"},null,"00:00:00"]
[null,null,null,null,null,null,0.05,{"$error":"#NUM!"},null,"00:00:00"]
[null,null,null,null,null,null,0.05,{"$f":"-PMT(G643,F643,E643)","v":{"$error":"#NUM!"}},null,{"$f":"+I643+F643*30","v":"00:00:00"}]
[null,null,null,null,null,null,0.05,{"$error":"#NUM!"},null,"00:00:00"]
[null,null,null,null,null,null,0.05,{"$error":"#NUM!"},null,"00:00:00"]
[null,null,null,null,null,null,0.05,{"$error":"#NUM!"},null,"00:00:00"]
[null,null,null,null,null,null,0.05,{"$error":"#NUM!"},null,"00:00:00"]
[null,null,null,null,null,null,0.05,{"$error":"#NUM!"},null,"00:00:00"]
[null,null,null,null,null,null,0.05,{"$error":"#NUM!"},null,"00:00:00"]
[null,null,null,null,null,null,0.05,{"$error":"#NUM!"},null,"00:00:00"]
[null,null,null,null,null,null,0.05,{"$error":"#NUM!"},null,"00:00:00"]
[null,null,null,null,null,null,0.05,{"$error":"#NUM!"},null,"00:00:00"]
[null,null,null,null,null,null,0.05,{"$error":"#NUM!"},null,"00:00:00"]
[null,null,null,null,null,null,0.05,{"$error":"#NUM!"},null,"00:00:00"]
[null,null,null,null,null,null,0.05,{"$error":"#NUM!"},null,"00:00:00"]
[null,null,null,null,null,null,0.05,{"$error":"#NUM!"},null,"00:00:00"]
[null,null,null,null,null,null,0.05,{"$error":"#NUM!"},null,"00:00:00"]
[null,null,null,null,null,null,0.05,{"$error":"#NUM!"},null,"00:00:00"]
[null,null,null,null,null,null,0.05,{"$error":"#NUM!"},null,"00:00:00"]
[null,null,null,null,null,null,0.05,{"$error":"#NUM!"},null,"00:00:00"]
[null,null,null,null,null,null,0.05,{"$error":"#NUM!"},null,"00:00:00"]
[null,null,null,null,null,null,0.05,{"$error":"#NUM!"},null,"00:00:00"]
[null,null,null,null,null,null,0.05,{"$error":"#NUM!"},null,"00:00:00"]
[null,null,null,null,null,null,0.05,{"$error":"#NUM!"},null,"00:00:00"]
[null,null,null,null,null,null,0.05,{"$error":"#NUM!"},null,"00:00:00"]
[null,null,null,null,null,null,0.05,{"$error":"#NUM!"},null,"00:00:00"]
[null,null,null,null,null,null,0.05,{"$error":"#NUM!"},null,"00:00:00"]
[null,null,null,null,null,null,0.05,{"$error":"#NUM!"},null,"00:00:00"]
[null,null,null,null,null,null,0.05,{"$error":"#NUM!"},null,"00:00:00"]
[null,null,null,null,null,null,0.05,{"$error":"#NUM!"},null,"00:00:00"]
[null,null,null,null,null,null,{"$f":"+IF(D671=\"S/.\",0.1,0.05)","v":0.05},{"$error":"#NUM!"},null,"00:00:00"]
[null,null,null,null,null,null,0.05,{"$error":"#NUM!"},null,"00:00:00"]
[null,null,null,null,null,null,0.05,{"$error":"#NUM!"},null,"00:00:00"]
[null,null,null,null,null,null,0.05,{"$error":"#NUM!"},null,"00:00:00"]
[null,null,null,null,null,null,0.05,{"$error":"#NUM!"},null,"00:00:00"]
[null,null,null,null,null,null,0.05,{"$error":"#NUM!"},null,"00:00:00"]
[null,null,null,null,null,null,0.05,{"$error":"#NUM!"},null,"00:00:00"]
[null,null,null,null,null,null,0.05,{"$error":"#NUM!"},null,"00:00:00"]
[null,null,null,null,null,null,0.05,{"$error":"#NUM!"},null,"00:00:00"]
[null,null,null,null,null,null,0.05,{"$error":"#NUM!"},null,"00:00:00"]
[null,null,null,null,null,null,0.05,{"$error":"#NUM!"},null,"00:00:00"]
[null,null,null,null,null,null,0.05,{"$error":"#NUM!"},null,"00:00:00"]
[null,null,null,null,null,null,0.05,{"$error":"#NUM!"},null,"00:00:00"]
[null,null,null,null,null,null,0.05,{"$error":"#NUM!"},null,"00:00:00"]
[null,null,null,null,null,null,0.05,{"$error":"#NUM!"},null,"00:00:00"]
[null,null,null,null,null,null,0.05,{"$error":"#NUM!"},null,"00:00:00"]
[null,null,null,null,null,null,0.05,{"$error":"#NUM!"},null,"00:00:00"]
[null,null,null,null,null,null,0.05,{"$error":"#NUM!"},null,"00:00:00"]
[null,null,null,null,null,null,0.05,{"$error":"#NUM!"},null,"00:00:00"]
[null,null,null,null,null,null,0.05,{"$error":"#NUM!"},null,"00:00:00"]
[null,null,null,null,null,null,0.05,{"$error":"#NUM!"},null,"00:00:00"]
[null,null,null,null,null,null,0.05,{"$error":"#NUM!"},null,"00:00:00"]
[null,null,null,null,null,null,0.05,{"$error":"#NUM!"},null,"00:00:00"]
[null,null,null,null,null,null,0.05,{"$error":"#NUM!"},null,"00:00:00"]
[null,null,null,null,null,null,0.05,{"$error":"#NUM!"},null,"00:00:00"]
[null,null,null,null,null,null,0.05,{"$error":"#NUM!"},null,"00:00:00"]
[null,null,null,null,null,null,0.05,{"$error":"#NUM!"},null,"00:00:00"]
[null,null,null,null,null,null,0.05,{"$error":"#NUM!"},null,"00:00:00"]
[null,null,null,null,null,null,0.05,{"$error":"#NUM!"},null,"00:00:00"]
[null,null,null,null,null,null,0.05,{"$error":"#NUM!"},null,"00:00:00"]
[null,null,null,null,null,null,0.05,{"$error":"#NUM!"},null,"00:00:00"]
[null,null,null,null,null,null,0.05,{"$error":"#NUM!"},null,"00:00:00"]
[null,null,null,null,null,null,0.05,{"$error":"#NUM!"},null,"00:00:00"]
[null,null,null,null,null,null,0.05,{"$error":"#NUM!"},null,"00:00:00"]
[null,null,null,null,null,null,0.05,{"$error":"#NUM!"},null,"00:00:00"]
[null,null,null,null,null,null,0.05,{"$error":"#NUM!"},null,"00:00:00"]
[null,null,null,null,null,null,0.05,{"$f":"-PMT(G707,F707,E707)","v":{"$error":"#NUM!"}},null,{"$f":"+I707+F707*30","v":"00:00:00"}]
[null,null,null,null,null,null,0.05,{"$error":"#NUM!"},null,"00:00:00"]
[null,null,null,null,null,null,0.05,{"$error":"#NUM!"},null,"00:00:00"]
[null,null,null,null,null,null,0.05,{"$error":"#NUM!"},null,"00:00:00"]
[null,null,null,null,null,null,0.05,{"$error":"#NUM!"},null,"00:00:00"]
[null,null,null,null,null,null,0.05,{"$error":"#NUM!"},null,"00:00:00"]
[null,null,null,null,null,null,0.05,{"$error":"#NUM!"},null,"00:00:00"]
[null,null,null,null,null,null,0.05,{"$error":"#NUM!"},null,"00:00:00"]
[null,null,null,null,null,null,0.05,{"$error":"#NUM!"},null,"00:00:00"]
[null,null,null,null,null,null,0.05,{"$error":"#NUM!"},null,"00:00:00"]
[null,null,null,null,null,null,0.05,{"$error":"#NUM!"},null,"00:00:00"]
[null,null,null,null,null,null,0.05,{"$error":"#NUM!"},null,"00:00:00"]
[null,null,null,null,null,null,0.05,{"$error":"#NUM!"},null,"00:00:00"]
[null,null,null,null,null,null,0.05,{"$error":"#NUM!"},null,"00:00:00"]
[null,null,null,null,null,null,0.05,{"$error":"#NUM!"},null,"00:00:00"]
[null,null,null,null,null,null,0.05,{"$error":"#NUM!"},null,"00:00:00"]
[null,null,null,null,null,null,0.05,{"$error":"#NUM!"},null,"00:00:00"]
[null,null,null,null,null,null,0.05,{"$error":"#NUM!"},null,"00:00:00"]
[null,null,null,null,null,null,0.05,{"$error":"#NUM!"},null,"00:00:00"]
[null,null,null,null,null,null,0.05,{"$error":"#NUM!"},null,"00:00:00"]
[null,null,null,null,null,null,0.05,{"$error":"#NUM!"},null,"00:00:00"]
[null,null,null,null,null,null,0.05,{"$error":"#NUM!"},null,"00:00:00"]
[null,null,null,null,null,null,0.05,{"$error":"#NUM!"},null,"00:00:00"]
[null,null,null,null,null,null,0.05,{"$error":"#NUM!"},null,"00:00:00"]
[null,null,null,null,null,null,0.05,{"$error":"#NUM!"},null,"00:00:00"]
[null,null,null,null,null,null,0.05,{"$error":"#NUM!"},null,"00:00:00"]
[null,null,null,null,null,null,0.05,{"$error":"#NUM!"},null,"00:00:00"]
[null,null,null,null,null,null,0.05,{"$error":"#NUM!"},null,"00:00:00"]
[null,null,null,null,null,null,{"$f":"+IF(D735=\"S/.\",0.1,0.05)","v":0.05},{"$error":"#NUM!"},null,"00:00:00"]
[null,null,null,null,null,null,0.05,{"$error":"#NUM!"},null,"00:00:00"]
[null,null,null,null,null,null,0.05,{"$error":"#NUM!"},null,"00:00:00"]
[null,null,null,null,null,null,0.05,{"$error":"#NUM!"},null,"00:00:00"]
[null,null,null,null,null,null,0.05,{"$error":"#NUM!"},null,"00:00:00"]
[null,null,null,null,null,null,0.05,{"$error":"#NUM!"},null,"00:00:00"]
[null,null,null,null,null,null,0.05,{"$error":"#NUM!"},null,"00:00:00"]
[null,null,null,null,null,null,0.05,{"$error":"#NUM!"},null,"00:00:00"]
[null,null,null,null,null,null,0.05,{"$error":"#NUM!"},null,"00:00:00"]
[null,null,null,null,null,null,0.05,{"$error":"#NUM!"},null,"00:00:00"]
[null,null,null,null,null,null,0.05,{"$error":"#NUM!"},null,"00:00:00"]
[null,null,null,null,null,null,0.05,{"$error":"#NUM!"},null,"00:00:00"]
[null,null,null,null,null,null,0.05,{"$error":"#NUM!"},null,"00:00:00"]
[null,null,null,null,null,null,0.05,{"$error":"#NUM!"},null,"00:00:00"]
[null,null,null,null,null,null,0.05,{"$error":"#NUM!"},null,"00:00:00"]
[null,null,null,null,null,null,0.05,{"$error":"#NUM!"},null,"00:00:00"]
[null,null,null,null,null,null,0.05,{"$error":"#NUM!"},null,"00:00:00"]
[null,null,null,null,null,null,0.05,{"$error":"#NUM!"},null,"00:00:00"]
[null,null,null,null,null,null,0.05,{"$error":"#NUM!"},null,"00:00:00"]
[null,null,null,null,null,null,0.05,{"$error":"#NUM!"},null,"00:00:00"]
[null,null,null,null,null,null,0.05,{"$error":"#NUM!"},null,"00:00:00"]
[null,null,null,null,null,null,0.05,{"$error":"#NUM!"},null,"00:00:00"]
[null,null,null,null,null,null,0.05,{"$error":"#NUM!"},null,"00:00:00"]
[null,null,null,null,null,null,0.05,{"$error":"#NUM!"},null,"00:00:00"]
[null,null,null,null,null,null,0.05,{"$error":"#NUM!"},null,"00:00:00"]
[null,null,null,null,null,null,0.05,{"$error":"#NUM!"},null,"00:00:00"]
[null,null,null,null,null,null,0.05,{"$error":"#NUM!"},null,"00:00:00"]
[null,null,null,null,null,null,0.05,{"$error":"#NUM!"},null,"00:00:00"]
[null,null,null,null,null,null,0.05,{"$error":"#NUM!"},null,"00:00:00"]
[null,null,null,null,null,null,0.05,{"$error":"#NUM!"},null,"00:00:00"]
[null,null,null,null,null,null,0.05,{"$error":"#NUM!"},null,"00:00:00"]
[null,null,null,null,null,null,0.05,{"$error":"#NUM!"},null,"00:00:00"]
[null,null,null,null,null,null,0.05,{"$error":"#NUM!"},null,"00:00:00"]
[null,null,null,null,null,null,0.05,{"$error":"#NUM!"},null,"00:00:00"]
[null,null,null,null,null,null,0.05,{"$error":"#NUM!"},null,"00:00:00"]
[null,null,null,null,null,null,0.05,{"$error":"#NUM!"},null,"00:00:00"]
[null,null,null,null,null,null,0.05,{"$f":"-PMT(G771,F771,E771)","v":{"$error":"#NUM!"}},null,{"$f":"+I771+F771*30","v":"00:00:00"}]
[null,null,null,null,null,null,0.05,{"$error":"#NUM!"},null,"00:00:00"]
[null,null,null,null,null,null,0.05,{"$error":"#NUM!"},null,"00:00:00"]
[null,null,null,null,null,null,0.05,{"$error":"#NUM!"},null,"00:00:00"]
[null,null,null,null,null,null,0.05,{"$error":"#NUM!"},null,"00:00:00"]
[null,null,null,null,null,null,0.05,{"$error":"#NUM!"},null,"00:00:00"]
[null,null,null,null,null,null,0.05,{"$error":"#NUM!"},null,"00:00:00"]
[null,null,null,null,null,null,0.05,{"$error":"#NUM!"},null,"00:00:00"]
[null,null,null,null,null,null,0.05,{"$error":"#NUM!"},null,"00:00:00"]
[null,null,null,null,null,null,0.05,{"$error":"#NUM!"},null,"00:00:00"]
[null,null,null,null,null,null,0.05,{"$error":"#NUM!"},null,"00:00:00"]
[null,null,null,null,null,null,0.05,{"$error":"#NUM!"},null,"00:00:00"]
[null,null,null,null,null,null,0.05,{"$error":"#NUM!"},null,"00:00:00"]
[null,null,null,null,null,null,0.05,{"$error":"#NUM!"},null,"00:00:00"]
[null,null,null,null,null,null,0.05,{"$error":"#NUM!"},null,"00:00:00"]
[null,null,null,null,null,null,0.05,{"$error":"#NUM!"},null,"00:00:00"]
[null,null,null,null,null,null,0.05,{"$error":"#NUM!"},null,"00:00:00"]
[null,null,null,null,null,null,0.05,{"$error":"#NUM!"},null,"00:00:00"]
[null,null,null,null,null,null,0.05,{"$error":"#NUM!"},null,"00:00:00"]
[null,null,null,null,null,null,0.05,{"$error":"#NUM!"},null,"00:00:00"]
[null,null,null,null,null,null,0.05,{"$error":"#NUM!"},null,"00:00:00"]
[null,null,null,null,null,null,0.05,{"$error":"#NUM!"},null,"00:00:00"]
[null,null,null,null,null,null,0.05,{"$error":"#NUM!"},null,"00:00:00"]
[null,null,null,null,null,null,0.05,{"$error":"#NUM!"},null,"00:00:00"]
[null,null,null,null,null,null,0.05,{"$error":"#NUM!"},null,"00:00:00"]
[null,null,null,null,null,null,0.05,{"$error":"#NUM!"},null,"00:00:00"]
[null,null,null,null,null,null,0.05,{"$error":"#NUM!"},null,"00:00:00"]
[null,null,null,null,null,null,0.05,{"$error":"#NUM!"},null,"00:00:00"]
[null,null,null,null,null,null,{"$f":"+IF(D799=\"S/.\",0.1,0.05)","v":0.05},{"$error":"#NUM!"},null,"00:00:00"]
[null,null,null,null,null,null,0.05,{"$error":"#NUM!"},null,"00:00:00"]
[null,null,null,null,null,null,0.05,{"$error":"#NUM!"},null,"00:00:00"]
[null,null,null,null,null,null,0.05,{"$error":"#NUM!"},null,"00:00:00"]
[null,null,null,null,null,null,0.05,{"$error":"#NUM!"},null,"00:00:00"]
[null,null,null,null,null,null,0.05,{"$error":"#NUM!"},null,"00:00:00"]
[null,null,null,null,null,null,0.05,{"$error":"#NUM!"},null,"00:00:00"]
[null,null,null,null,null,null,0.05,{"$error":"#NUM!"},null,"00:00:00"]
[null,null,null,null,null,null,0.05,{"$error":"#NUM!"},null,"00:00:00"]
[null,null,null,null,null,null,0.05,{"$error":"#NUM!"},null,"00:00:00"]
[null,null,null,null,null,null,0.05,{"$error":"#NUM!"},null,"00:00:00"]
[null,null,null,null,null,null,0.05,{"$error":"#NUM!"},null,"00:00:00"]
[null,null,null,null,null,null,0.05,{"$error":"#NUM!"},null,"00:00:00"]
[null,null,null,null,null,null,0.05,{"$error":"#NUM!"},null,"00:00:00"]
[null,null,null,null,null,null,0.05,{"$error":"#NUM!"},null,"00:00:00"]
[null,null,null,null,null,null,0.05,{"$error":"#NUM!"},null,"00:00:00"]
[null,null,null,null,null,null,0.05,{"$error":"#NUM!"},null,"00:00:00"]
[null,null,null,null,null,null,0.05,{"$error":"#NUM!"},null,"00:00:00"]
[null,null,null,null,null,null,0.05,{"$error":"#NUM!"},null,"00:00:00"]
[null,null,null,null,null,null,0.05,{"$error":"#NUM!"},null,"00:00:00"]
[null,null,null,null,null,null,0.05,{"$error":"#NUM!"},null,"00:00:00"]
[null,null,null,null,null,null,0.05,{"$error":"#NUM!"},null,"00:00:00"]
[null,null,null,null,null,null,0.05,{"$error":"#NUM!"},null,"00:00:00"]
[null,null,null,null,null,null,0.05,{"$error":"#NUM!"},null,"00:00:00"]
[null,null,null,null,null,null,0.05,{"$error":"#NUM!"},null,"00:00:00"]
[null,null,null,null,null,null,0.05,{"$error":"#NUM!"},null,"00:00:00"]
[null,null,null,null,null,null,0.05,{"$error":"#NUM!"},null,"00:00:00"]
[null,null,null,null,null,null,0.05,{"$error":"#NUM!"},null,"00:00:00"]
[null,null,null,null,null,null,0.05,{"$error":"#NUM!"},null,"00:00:00"]
[null,null,null,null,null,null,0.05,{"$error":"#NUM!"},null,"00:00:00"]
[null,null,null,null,null,null,0.05,{"$error":"#NUM!"},null,"00:00:00"]
[null,null,null,null,null,null,0.05,{"$error":"#NUM!"},null,"00:00:00"]
[null,null,null,null,null,null,0.05,{"$error":"#NUM!"},null,"00:00:00"]
[null,null,null,null,null,null,0.05,{"$error":"#NUM!"},null,"00:00:00"]
[null,null,null,null,null,null,0.05,{"$error":"#NUM!"},null,"00:00:00"]
[null,null,null,null,null,null,0.05,{"$error":"#NUM!"},null,"00:00:00"]
[null,null,null,null,null,null,0.05,{"$f":"-PMT(G835,F835,E835)","v":{"$error":"#NUM!"}},null,{"$f":"+I835+F835*30","v":"00:00:00"}]
[null,null,null,null,null,null,0.05,{"$error":"#NUM!"},null,"00:00:00"]
[null,null,null,null,null,null,0.05,{"$error":"#NUM!"},null,"00:00:00"]
[null,null,null,null,null,null,0.05,{"$error":"#NUM!"},null,"00:00:00"]
[null,null,null,null,null,null,0.05,{"$error":"#NUM!"},null,"00:00:00"]
[null,null,null,null,null,null,0.05,{"$error":"#NUM!"},null,"00:00:00"]
[null,null,null,null,null,null,0.05,{"$error":"#NUM!"},null,"00:00:00"]
[null,null,null,null,null,null,0.05,{"$error":"#NUM!"},null,"00:00:00"]
[null,null,null,null,null,null,0.05,{"$error":"#NUM!"},null,"00:00:00"]
[null,null,null,null,null,null,0.05,{"$error":"#NUM!"},null,"00:00:00"]
[null,null,null,null,null,null,0.05,{"$error":"#NUM!"},null,"00:00:00"]
[null,null,null,null,null,null,0.05,{"$error":"#NUM!"},null,"00:00:00"]
[null,null,null,null,null,null,0.05,{"$error":"#NUM!"},null,"00:00:00"]
[null,null,null,null,null,null,0.05,{"$error":"#NUM!"},null,"00:00:00"]
[null,null,null,null,null,null,0.05,{"$error":"#NUM!"},null,"00:00:00"]
[null,null,null,null,null,null,0.05,{"$error":"#NUM!"},null,"00:00:00"]
[null,null,null,null,null,null,0.05,{"$error":"#NUM!"},null,"00:00:00"]
[null,null,null,null,null,null,0.05,{"$error":"#NUM!"},null,"00:00:00"]
[null,null,null,null,null,null,0.05,{"$error":"#NUM!"},null,"00:00:00"]
[null,null,null,null,null,null,0.05,{"$error":"#NUM!"},null,"00:00:00"]
[null,null,null,null,null,null,0.05,{"$error":"#NUM!"},null,"00:00:00"]
[null,null,null,null,null,null,0.05,{"$error":"#NUM!"},null,"00:00:00"]
[null,null,null,null,null,null,0.05,{"$error":"#NUM!"},null,"00:00:00"]
[null,null,null,null,null,null,0.05,{"$error":"#NUM!"},null,"00:00:00"]
[null,null,null,null,null,null,0.05,{"$error":"#NUM!"},null,"00:00:00"]
[null,null,null,null,null,null,0.05,{"$error":"#NUM!"},null,"00:00:00"]
[null,null,null,null,null,null,0.05,{"$error":"#NUM!"},null,"00:00:00"]
[null,null,null,null,null,null,0.05,{"$error":"#NUM!"},null,"00:00:00"]
[null,null,null,null,null,null,{"$f":"+IF(D863=\"S/.\",0.1,0.05)","v":0.05},{"$error":"#NUM!"},null,"00:00:00"]
[null,null,null,null,null,null,0.05,{"$error":"#NUM!"},null,"00:00:00"]
[null,null,null,null,null,null,0.05,{"$error":"#NUM!"},null,"00:00:00"]
[null,null,null,null,null,null,0.05,{"$error":"#NUM!"},null,"00:00:00"]
[null,null,null,null,null,null,0.05,{"$error":"#NUM!"},null,"00:00:00"]
[null,null,null,null,null,null,0.05,{"$error":"#NUM!"},null,"00:00:00"]
[null,null,null,null,null,null,0.05,{"$error":"#NUM!"},null,"00:00:00"]
[null,null,null,null,null,null,0.05,{"$error":"#NUM!"},null,"00:00:00"]
[null,null,null,null,null,null,0.05,{"$error":"#NUM!"},null,"00:00:00"]
[null,null,null,null,null,null,0.05,{"$error":"#NUM!"},null,"00:00:00"]
[null,null,null,null,null,null,0.05,{"$error":"#NUM!"},null,"00:00:00"]
[null,null,null,null,null,null,0.05,{"$error":"#NUM!"},null,"00:00:00"]
[null,null,null,null,null,null,0.05,{"$error":"#NUM!"},null,"00:00:00"]
[null,null,null,null,null,null,0.05,{"$error":"#NUM!"},null,"00:00:00"]
[null,null,null,null,null,null,0.05,{"$error":"#NUM!"},null,"00:00:00"]
[null,null,null,null,null,null,0.05,{"$error":"#NUM!"},null,"00:00:00"]
[null,null,null,null,null,null,0.05,{"$error":"#NUM!"},null,"00:00:00"]
[null,null,null,null,null,null,0.05,{"$error":"#NUM!"},null,"00:00:00"]
[null,null,null,null,null,null,0.05,{"$error":"#NUM!"},null,"00:00:00"]
[null,null,null,null,null,null,0.05,{"$error":"#NUM!"},null,"00:00:00"]
[null,null,null,null,null,null,0.05,{"$error":"#NUM!"},null,"00:00:00"]
[null,null,null,null,null,null,0.05,{"$error":"#NUM!"},null,"00:00:00"]
[null,null,null,null,null,null,0.05,{"$error":"#NUM!"},null,"00:00:00"]
[null,null,null,null,null,null,0.05,{"$error":"#NUM!"},null,"00:00:00"]
[null,null,null,null,null,null,0.05,{"$error":"#NUM!"},null,"00:00:00"]
[null,null,null,null,null,null,0.05,{"$error":"#NUM!"},null,"00:00:00"]
[null,null,null,null,null,null,0.05,{"$error":"#NUM!"},null,"00:00:00"]
[null,null,null,null,null,null,0.05,{"$error":"#NUM!"},null,"00:00:00"]
[null,null,null,null,null,null,0.05,{"$error":"#NUM!"},null,"00:00:00"]
[null,null,null,null,null,null,0.05,{"$error":"#NUM!"},null,"00:00:00"]
[null,null,null,null,null,null,0.05,{"$error":"#NUM!"},null,"00:00:00"]
[null,null,null,null,null,null,0.05,{"$error":"#NUM!"},null,"00:00:00"]
[null,null,null,null,null,null,0.05,{"$error":"#NUM!"},null,"00:00:00"]
[null,null,null,null,null,null,0.05,{"$error":"#NUM!"},null,"00:00:00"]
[null,null,null,null,null,null,0.05,{"$error":"#NUM!"},null,"00:00:00"]
[null,null,null,null,null,null,0.05,{"$error":"#NUM!"},null,"00:00:00"]
[null,null,null,null,null,null,0.05,{"$f":"-PMT(G899,F899,E899)","v":{"$error":"#NUM!"}},null,{"$f":"+I899+F899*30","v":"00:00:00"}]
[null,null,null,null,null,null,0.05,{"$error":"#NUM!"},null,"00:00:00"]
[null,null,null,null,null,null,0.05,{"$error":"#NUM!"},null,"00:00:00"]
[null,null,null,null,null,null,0.05,{"$error":"#NUM!"},null,"00:00:00"]
[null,null,null,null,null,null,0.05,{"$error":"#NUM!"},null,"00:00:00"]
[null,null,null,null,null,null,0.05,{"$error":"#NUM!"},null,"00:00:00"]
[null,null,null,null,null,null,0.05,{"$error":"#NUM!"},null,"00:00:00"]
[null,null,null,null,null,null,0.05,{"$error":"#NUM!"},null,"00:00:00"]
[null,null,null,null,null,null,0.05,{"$error":"#NUM!"},null,"00:00:00"]
[null,null,null,null,null,null,0.05,{"$error":"#NUM!"},null,"00:00:00"]
[null,null,null,null,null,null,0.05,{"$error":"#NUM!"},null,"00:00:00"]
[null,null,null,null,null,null,0.05,{"$error":"#NUM!"},null,"00:00:00"]
[null,null,null,null,null,null,0.05,{"$error":"#NUM!"},null,"00:00:00"]
[null,null,null,null,null,null,0.05,{"$error":"#NUM!"},null,"00:00:00"]
[null,null,null,null,null,null,0.05,{"$error":"#NUM!"},null,"00:00:00"]
[null,null,null,null,null,null,0.05,{"$error":"#NUM!"},null,"00:00:00"]
[null,null,null,null,null,null,0.05,{"$error":"#NUM!"},null,"00:00:00"]
[null,null,null,null,null,null,0.05,{"$error":"#NUM!"},null,"00:00:00"]
[null,null,null,null,null,null,0.05,{"$error":"#NUM!"},null,"00:00:00"]
[null,null,null,null,null,null,0.05,{"$error":"#NUM!"},null,"00:00:00"]
[null,null,null,null,null,null,0.05,{"$error":"#NUM!"},null,"00:00:00"]
[null,null,null,null,null,null,0.05,{"$error":"#NUM!"},null,"00:00:00"]
[null,null,null,null,null,null,0.05,{"$error":"#NUM!"},null,"00:00:00"]
[null,null,null,null,null,null,0.05,{"$error":"#NUM!"},null,"00:00:00"]
[null,null,null,null,null,null,0.05,{"$error":"#NUM!"},null,"00:00:00"]
[null,null,null,null,null,null,0.05,{"$error":"#NUM!"},null,"00:00:00"]
[null,null,null,null,null,null,0.05,{"$error":"#NUM!"},null,"00:00:00"]
[null,null,null,null,null,null,0.05,{"$error":"#NUM!"},null,"00:00:00"]
[null,null,null,null,null,null,{"$f":"+IF(D927=\"S/.\",0.1,0.05)","v":0.05},{"$error":"#NUM!"},null,"00:00:00"]
[null,null,null,null,null,null,0.05,{"$error":"#NUM!"},null,"00:00:00"]
[null,null,null,null,null,null,0.05,{"$error":"#NUM!"},null,"00:00:00"]
[null,null,null,null,null,null,0.05,{"$error":"#NUM!"},null,"00:00:00"]
[null,null,null,null,null,null,0.05,{"$error":"#NUM!"},null,"00:00:00"]
[null,null,null,null,null,null,0.05,{"$error":"#NUM!"},null,"00:00:00"]
[null,null,null,null,null,null,0.05,{"$error":"#NUM!"},null,"00:00:00"]
[null,null,null,null,null,null,0.05,{"$error":"#NUM!"},null,"00:00:00"]
[null,null,null,null,null,null,0.05,{"$error":"#NUM!"},null,"00:00:00"]
[null,null,null,null,null,null,0.05,{"$error":"#NUM!"},null,"00:00:00"]
[null,null,null,null,null,null,0.05,{"$error":"#NUM!"},null,"00:00:00"]
[null,null,null,null,null,null,0.05,{"$error":"#NUM!"},null,"00:00:00"]
[null,null,null,null,null,null,0.05,{"$error":"#NUM!"},null,"00:00:00"]
[null,null,null,null,null,null,0.05,{"$error":"#NUM!"},null,"00:00:00"]
[null,null,null,null,null,null,0.05,{"$error":"#NUM!"},null,"00:00:00"]
[null,null,null,null,null,null,0.05,{"$error":"#NUM!"},null,"00:00:00"]
[null,null,null,null,null,null,0.05,{"$error":"#NUM!"},null,"00:00:00"]
[null,null,null,null,null,null,0.05,{"$error":"#NUM!"},null,"00:00:00"]
[null,null,null,null,null,null,0.05,{"$error":"#NUM!"},null,"00:00:00"]
[null,null,null,null,null,null,0.05,{"$error":"#NUM!"},null,"00:00:00"]
[null,null,null,null,null,null,0.05,{"$error":"#NUM!"},null,"00:00:00"]
[null,null,null,null,null,null,0.05,{"$error":"#NUM!"},null,"00:00:00"]
[null,null,null,null,null,null,0.05,{"$error":"#NUM!"},null,"00:00:00"]
[null,null,null,null,null,null,0.05,{"$error":"#NUM!"},null,"00:00:00"]
[null,null,null,null,null,null,0.05,{"$error":"#NUM!"},null,"00:00:00"]
[null,null,null,null,null,null,0.05,{"$error":"#NUM!"},null,"00:00:00"]
[null,null,null,null,null,null,0.05,{"$error":"#NUM!"},null,"00:00:00"]
[null,null,null,null,null,null,0.05,{"$error":"#NUM!"},null,"00:00:00"]
[null,null,null,null,null,null,0.05,{"$error":"#NUM!"},null,"00:00:00"]
[null,null,null,null,null,null,0.05,{"$error":"#NUM!"},null,"00:00:00"]
[null,null,null,null,null,null,0.05,{"$error":"#NUM!"},null,"00:00:00"]
[null,null,null,null,null,null,0.05,{"$error":"#NUM!"},null,"00:00:00"]
[null,null,null,null,null,null,0.05,{"$error":"#NUM!"},null,"00:00:00"]
[null,null,null,null,null,null,0.05,{"$error":"#NUM!"},null,"00:00:00"]
[null,null,null,null,null,null,0.05,{"$error":"#NUM!"},null,"00:00:00"]
[null,null,null,null,null,null,0.05,{"$error":"#NUM!"},null,"00:00:00"]
[null,null,null,null,null,null,0.05,{"$f":"-PMT(G963,F963,E963)","v":{"$error":"#NUM!"}},null,{"$f":"+I963+F963*30","v":"00:00:00"}]
[null,null,null,null,null,null,0.05,{"$error":"#NUM!"},null,"00:00:00"]
[null,null,null,null,null,null,0.05,{"$error":"#NUM!"},null,"00:00:00"]
[null,null,null,null,null,null,0.05,{"$error":"#NUM!"},null,"00:00:00"]
[null,null,null,null,null,null,0.05,{"$error":"#NUM!"},null,"00:00:00"]
[null,null,null,null,null,null,0.05,{"$error":"#NUM!"},null,"00:00:00"]
[null,null,null,null,null,null,0.05,{"$error":"#NUM!"},null,"00:00:00"]
[null,null,null,null,null,null,0.05,{"$error":"#NUM!"},null,"00:00:00"]
[null,null,null,null,null,null,0.05,{"$error":"#NUM!"},null,"00:00:00"]
[null,null,null,null,null,null,0.05,{"$error":"#NUM!"},null,"00:00:00"]
[null,null,null,null,null,null,0.05,{"$error":"#NUM!"},null,"00:00:00"]
[null,null,null,null,null,null,0.05,{"$error":"#NUM!"},null,"00:00:00"]
[null,null,null,null,null,null,0.05,{"$error":"#NUM!"},null,"00:00:00"]
[null,null,null,null,null,null,0.05,{"$error":"#NUM!"},null,"00:00:00"]
[null,null,null,null,null,null,0.05,{"$error":"#NUM!"},null,"00:00:00"]
[null,null,null,null,null,null,0.05,{"$error":"#NUM!"},null,"00:00:00"]
[null,null,null,null,null,null,0.05,{"$error":"#NUM!"},null,"00:00:00"]
[null,null,null,null,null,null,0.05,{"$error":"#NUM!"},null,"00:00:00"]
[null,null,null,null,null,null,0.05,{"$error":"#NUM!"},null,"00:00:00"]
[null,null,null,null,null,null,0.05,{"$error":"#NUM!"},null,"00:00:00"]
[null,null,null,null,null,null,0.05,{"$error":"#NUM!"},null,"00:00:00"]
[null,null,null,null,null,null,0.05,{"$error":"#NUM!"},null,"00:00:00"]
[null,null,null,null,null,null,0.05,{"$error":"#NUM!"},null,"00:00:00"]
[null,null,null,null,null,null,0.05,{"$error":"#NUM!"},null,"00:00:00"]
[null,null,null,null,null,null,0.05,{"$error":"#NUM!"},null,"00:00:00"]
[null,null,null,null,null,null,0.05,{"$error":"#NUM!"},null,"00:00:00"]
[null,null,null,null,null,null,0.05,{"$error":"#NUM!"},null,"00:00:00"]
[null,null,null,null,null,null,0.05,{"$error":"#NUM!"},null,"00:00:00"]
[null,null,null,null,null,null,{"$f":"+IF(D991=\"S/.\",0.1,0.05)","v":0.05},{"$error":"#NUM!"},null,"00:00:00"]
[null,null,null,null,null,null,0.05,{"$error":"#NUM!"},null,"00:00:00"]
[null,null,null,null,null,null,0.05,{"$error":"#NUM!"},null,"00:00:00"]
[null,null,null,null,null,null,0.05,{"$error":"#NUM!"},null,"00:00:00"]
[null,null,null,null,null,null,0.05,{"$error":"#NUM!"},null,"00:00:00"]
[null,null,null,null,null,null,0.05,{"$error":"#NUM!"},null,"00:00:00"]
[null,null,null,null,null,null,0.05,{"$error":"#NUM!"},null,"00:00:00"]
[null,null,null,null,null,null,0.05,{"$error":"#NUM!"},null,"00:00:00"]
[null,null,null,null,null,null,0.05,{"$error":"#NUM!"},null,"00:00:00"]
[null,null,null,null,null,null,0.05,{"$error":"#NUM!"},null,"00:00:00"]
[null,null,null,null,null,null,0.05,{"$error":"#NUM!"},null,"00:00:00"]